{"text_format":"1","workbook":"xlsx","n_sheets":2,"sheets":["Application","App Dropdown Tab"],"not_rendered":{"charts":0,"images":2,"macros":1,"external_links":0,"defined_names":51,"comments":1,"pivot_tables":0},"unopened":[],"bounds":{"document_bytes":16777216,"sheet_cells":100000,"rows_first":2000,"rows_last":500,"rows_between":2000,"halvings":0,"cell_chars":16384,"cell_head_chars":4096},"cells_cut":0,"cells_raw":0,"read":"whole","date_system":"1900"}

{"sheet":"Application","index":0,"n_rows":171,"n_cols":108,"rows_kept":171,"cut":false,"hidden":false,"merged":[[52,1,52,5],[36,0,36,5],[37,0,37,5],[21,0,21,1],[21,2,21,3],[21,4,21,5],[24,0,24,5],[25,0,26,5],[23,0,23,1],[23,3,23,4],[27,0,27,5],[34,0,34,1],[34,3,34,4],[46,0,46,2],[45,0,45,4],[51,0,51,4],[111,0,111,5],[112,0,112,5],[113,0,113,5],[114,0,114,5],[106,1,106,3],[106,4,106,5],[107,0,107,5],[108,0,108,5],[109,0,109,5],[110,0,110,5],[101,0,101,5],[102,0,102,1],[102,3,102,4],[103,0,103,5],[105,0,105,5],[97,0,97,4],[98,3,98,4],[99,0,99,1],[99,3,99,4],[100,0,100,4],[57,0,57,4],[46,4,46,5],[86,0,86,5],[96,3,96,5],[81,0,81,1],[81,3,81,4],[83,0,83,1],[82,3,82,5],[83,3,83,4],[84,0,84,1],[85,0,85,1],[84,3,84,4],[85,3,85,4],[79,0,79,1],[79,3,79,5],[80,0,80,1],[80,3,80,5],[82,0,82,1],[76,0,76,5],[60,0,60,5],[59,0,59,5],[63,4,64,5],[71,4,72,5],[67,0,67,2],[8,1,8,2],[5,4,5,5],[8,4,8,5],[7,0,7,3],[13,4,13,5],[10,0,10,5],[11,1,11,2],[12,1,12,2],[13,1,13,2],[11,4,11,5],[12,4,12,5],[2,0,2,5],[3,0,3,4],[4,0,4,4],[5,1,5,2],[0,1,0,4],[18,0,18,5],[14,0,14,2],[14,4,14,5],[115,1,115,3],[115,4,115,5],[22,0,22,5],[15,0,15,1],[15,2,15,5],[35,0,35,1],[35,3,35,4],[40,0,40,5],[41,0,41,5],[77,0,77,1],[78,0,78,1],[77,3,77,5],[78,3,78,5]]}
[null,"Arizona Voluntary Environmental Stewardship Program Application"]
["Type of Submittal:","Initial \nApplicaton","Update\nApplicaton","First Annual \nReport","Second Annual \nReport","Third Annual \nReport"]
["Type of Membership: (Please select from either the Regulated or Non-Regulated Facility dropdown list)"]
["Regulated Facility: (Facility subject to environmental requirements)",null,null,null,null,null,null,null,null,null,null,null,null,null,null,null,null,null,null,null,null,null,null,null,null,null,null,null,null,null,null,null,null,null,null,null,null,null,null,null,null,null,null,null,null,null,null,null,null,null,null,null,null,null,null,null,null,null,null,null,null,null,null,null,null,null,null,null,null,null,null,null,null,null,null,null,null,null,null,null,null,null,null,null,null,null,null,null,null,null,null,null,null,null,null,null,null,null,null,null,null,null,null,null,null,null,null,"CY - 2012"]
["Non-Regulated Facility or Collaboration: (Organization not subject to environmental requirements)"]
["Name of organization:",null,null,"Location/street address:"]
["City:",null,"State:","Arizona","Zip Code"]
["Is there a parent company?"]
["Parent Company name:",null,null,"Location/street address:"]
["City:",null,"State:",null,"Zip Code"]
[]
["Faciltiy Contact Name:",null,null,"Contact fax:"]
["Contact Title:",null,null,"Contact Email:"]
["Contact Phone:",null,null,"Company web address:"]
["Is mailing address the same as facility address?"]
["Mailing address:"]
["City:",null,"State:",null,"Zip Code"]
["Number of Full time equivalents?",null,"Primary NAICS Industry Title",null,"Secondary NAICS Industry Title"]
["How did you learn about the Arizona Voluntary Environmental Stewardship Program? (Select all that apply)"]
["Press Release",null,"       At a professional conference, meeting, event","ADEQ Employee","Through a \ntrade association","Environmental \nConsultant"]
["Media ",null,"At an environmental event","From an existing member","From a peer in your sector","Other (Specify below)"]
["If Other, Identify source:"]
["Facility Specific Information"]
["Total square footage of facility:",null,null,"Total acreage of facilty"]
["What activities, products, or services does your facility or collaboration engage in, make, or provide? (Please feel free to send as an attachment):"]
[]
[]
["Identify any applicable environmental permits, from the dropdown list, that apply to the buildings and locations included in this application and provide the associated permit or identification number:"]
["Permitting Agency","Type of Permit","Permit Number","Permitting Agency","Type of Permit","Permit Number"]
[]
[]
[]
[]
[]
["Has your facilty been inspected by an environmental regulatory agency within the past three years? ",null,null,"Who was/were the regulatory agency(ies)?"]
["Were you cited for violations?      ",null,null,"Have all violations been addressed?  "]
["If outstanding violations exist, describe the steps being taken to resolve them (attach explanation if necessary):"]
[]
[]
[]
["Reporting on Past Environmental Improvements"]
["Please provide a brief description of the activities or process changes that were undertaken to accomplish the selected initiative(s)"]
["Environmental Category:","Environmental Aspect:","Environmental Indicator(s)\n","Units","Normalizing Factor used:","If used, Normalizing Factor based on?"]
[null,null,null,{"$f":"IF(C44='App Dropdown Tab'!$F$3,'App Dropdown Tab'!$G$3,IF(Application!C44='App Dropdown Tab'!$F$4,'App Dropdown Tab'!$G$4,IF(C44='App Dropdown Tab'!$F$7,'App Dropdown Tab'!$G$7,IF(C44='App Dropdown Tab'!$F$8,'App Dropdown Tab'!$G$8,IF(C44='App Dropdown Tab'!$F$9,'App Dropdown Tab'!$G$9,IF(C44='App Dropdown Tab'!$F$11,'App Dropdown Tab'!$G$11,IF(C44='App Dropdown Tab'!$F$14,'App Dropdown Tab'!$G$14,IF(C44='App Dropdown Tab'!$F$15,'App Dropdown Tab'!$G$15,IF(C44='App Dropdown Tab'!$F$16,'App Dropdown Tab'!$G$16,IF(C44='App Dropdown Tab'!$F$17,'App Dropdown Tab'!$G$17,IF(C44='App Dropdown Tab'!$F$18,'App Dropdown Tab'!$G$18,IF(C44='App Dropdown Tab'!$F$19,'App Dropdown Tab'!$G$19,IF(C44='App Dropdown Tab'!$F$20,'App Dropdown Tab'!$G$20,IF(C44='App Dropdown Tab'!$F$21,'App Dropdown Tab'!$G$21,IF(C44='App Dropdown Tab'!$F$22,'App Dropdown Tab'!$G$22,IF(C44='App Dropdown Tab'!$F$23,'App Dropdown Tab'!$G$23,IF(C44='App Dropdown Tab'!$F$26,'App Dropdown Tab'!$G$26,IF(C44='App Dropdown Tab'!$F$27,'App Dropdown Tab'!$G$27,IF(C44='App Dropdown Tab'!$F$30,'App Dropdown Tab'!$G$30,IF(C44='App Dropdown Tab'!$F$31,'App Dropdown Tab'!$G$31,IF(C44='App Dropdown Tab'!$F$32,'App Dropdown Tab'!$G$32,IF(C44='App Dropdown Tab'!$F$33,'App Dropdown Tab'!$G$33,IF(C44='App Dropdown Tab'!$F$34,'App Dropdown Tab'!$G$34,IF(C44='App Dropdown Tab'!$F$35,'App Dropdown Tab'!$G$35,IF(C44='App Dropdown Tab'!$F$36,'App Dropdown Tab'!$G$36,IF(C44='App Dropdown Tab'!$F$37,'App Dropdown Tab'!$G$37,IF(C44='App Dropdown Tab'!$F$38,'App Dropdown Tab'!$G$38,IF(C44='App Dropdown Tab'!$F$39,'App Dropdown Tab'!$G$39,IF(C44='App Dropdown Tab'!$F$40,'App Dropdown Tab'!$G$40,IF(C44='App Dropdown Tab'!$F$43,'App Dropdown Tab'!$G$43,IF(C44='App Dropdown Tab'!$F$44,'App Dropdown Tab'!$G$44,IF(C44='App Dropdown Tab'!$F$45,'App Dropdown Tab'!$G$45,IF(C44='App Dropdown Tab'!$F$46,'App Dropdown Tab'!$G$46,IF(C44='App Dropdown Tab'!$F$47,'App Dropdown Tab'!$G$47,IF(C44='App Dropdown Tab'!$F$48,'App Dropdown Tab'!$G$48,IF(C44='App Dropdown Tab'!$F$49,'App Dropdown Tab'!$G$49,IF(C44='App Dropdown Tab'!$F$50,'App Dropdown Tab'!$G$50,IF(C44='App Dropdown Tab'!$F$53,'App Dropdown Tab'!$G$53,IF(C44='App Dropdown Tab'!$F$54,'App Dropdown Tab'!$G$54,IF(C44='App Dropdown Tab'!$F$55,'App Dropdown Tab'!$G$55,IF(C44='App Dropdown Tab'!$F$56,'App Dropdown Tab'!$G$56,IF(C44='App Dropdown Tab'!$F$66,'App Dropdown Tab'!$G$66,IF(C44='App Dropdown Tab'!$F$69,'App Dropdown Tab'!$G$69,IF(C44='App Dropdown Tab'!$F$72,'App Dropdown Tab'!$G$72,IF(C44='App Dropdown Tab'!$F$73,'App Dropdown Tab'!$G$73,IF(C44='App Dropdown Tab'!$F$74,'App Dropdown Tab'!$G$74,IF(C44='App Dropdown Tab'!$F$75,'App Dropdown Tab'!$G$75,IF(C44='App Dropdown Tab'!$F$78,'App Dropdown Tab'!$G$78,IF(Application!C44='App Dropdown Tab'!$F$79,'App Dropdown Tab'!$G$79,IF(Application!C44='App Dropdown Tab'!$F$80,'App Dropdown Tab'!$G$80,IF(Application!C44='App Dropdown Tab'!$F$81,'App Dropdown Tab'!$G$81,IF(Application!C44='App Dropdown Tab'!$F$63,'App Dropdown Tab'!$G$63))))))))))))))))))))))))))))))))))))))))))))))))))))","v":false}]
["Baseline Performance:",null,null,"Improvement Achieved:"]
["Do you plan to continue to measure improvement in this area or select a different area for next year?"]
["Would you like to report on another Improvement?"]
[]
["Environmental Category:","Environmental Aspect:","Environmental Indicator(s)\n","Units","Normalizing Factor used:","If used, Normalizing Factor based on?"]
[null,null,null,{"$f":"IF(C50='App Dropdown Tab'!$F$3,'App Dropdown Tab'!$G$3,IF(Application!C50='App Dropdown Tab'!$F$4,'App Dropdown Tab'!$G$4,IF(C50='App Dropdown Tab'!$F$7,'App Dropdown Tab'!$G$7,IF(C50='App Dropdown Tab'!$F$8,'App Dropdown Tab'!$G$8,IF(C50='App Dropdown Tab'!$F$9,'App Dropdown Tab'!$G$9,IF(C50='App Dropdown Tab'!$F$11,'App Dropdown Tab'!$G$11,IF(C50='App Dropdown Tab'!$F$14,'App Dropdown Tab'!$G$14,IF(C50='App Dropdown Tab'!$F$15,'App Dropdown Tab'!$G$15,IF(C50='App Dropdown Tab'!$F$16,'App Dropdown Tab'!$G$16,IF(C50='App Dropdown Tab'!$F$17,'App Dropdown Tab'!$G$17,IF(C50='App Dropdown Tab'!$F$18,'App Dropdown Tab'!$G$18,IF(C50='App Dropdown Tab'!$F$19,'App Dropdown Tab'!$G$19,IF(C50='App Dropdown Tab'!$F$20,'App Dropdown Tab'!$G$20,IF(C50='App Dropdown Tab'!$F$21,'App Dropdown Tab'!$G$21,IF(C50='App Dropdown Tab'!$F$22,'App Dropdown Tab'!$G$22,IF(C50='App Dropdown Tab'!$F$23,'App Dropdown Tab'!$G$23,IF(C50='App Dropdown Tab'!$F$26,'App Dropdown Tab'!$G$26,IF(C50='App Dropdown Tab'!$F$27,'App Dropdown Tab'!$G$27,IF(C50='App Dropdown Tab'!$F$30,'App Dropdown Tab'!$G$30,IF(C50='App Dropdown Tab'!$F$31,'App Dropdown Tab'!$G$31,IF(C50='App Dropdown Tab'!$F$32,'App Dropdown Tab'!$G$32,IF(C50='App Dropdown Tab'!$F$33,'App Dropdown Tab'!$G$33,IF(C50='App Dropdown Tab'!$F$34,'App Dropdown Tab'!$G$34,IF(C50='App Dropdown Tab'!$F$35,'App Dropdown Tab'!$G$35,IF(C50='App Dropdown Tab'!$F$36,'App Dropdown Tab'!$G$36,IF(C50='App Dropdown Tab'!$F$37,'App Dropdown Tab'!$G$37,IF(C50='App Dropdown Tab'!$F$38,'App Dropdown Tab'!$G$38,IF(C50='App Dropdown Tab'!$F$39,'App Dropdown Tab'!$G$39,IF(C50='App Dropdown Tab'!$F$40,'App Dropdown Tab'!$G$40,IF(C50='App Dropdown Tab'!$F$43,'App Dropdown Tab'!$G$43,IF(C50='App Dropdown Tab'!$F$44,'App Dropdown Tab'!$G$44,IF(C50='App Dropdown Tab'!$F$45,'App Dropdown Tab'!$G$45,IF(C50='App Dropdown Tab'!$F$46,'App Dropdown Tab'!$G$46,IF(C50='App Dropdown Tab'!$F$47,'App Dropdown Tab'!$G$47,IF(C50='App Dropdown Tab'!$F$48,'App Dropdown Tab'!$G$48,IF(C50='App Dropdown Tab'!$F$49,'App Dropdown Tab'!$G$49,IF(C50='App Dropdown Tab'!$F$50,'App Dropdown Tab'!$G$50,IF(C50='App Dropdown Tab'!$F$53,'App Dropdown Tab'!$G$53,IF(C50='App Dropdown Tab'!$F$54,'App Dropdown Tab'!$G$54,IF(C50='App Dropdown Tab'!$F$55,'App Dropdown Tab'!$G$55,IF(C50='App Dropdown Tab'!$F$56,'App Dropdown Tab'!$G$56,IF(C50='App Dropdown Tab'!$F$66,'App Dropdown Tab'!$G$66,IF(C50='App Dropdown Tab'!$F$69,'App Dropdown Tab'!$G$69,IF(C50='App Dropdown Tab'!$F$72,'App Dropdown Tab'!$G$72,IF(C50='App Dropdown Tab'!$F$73,'App Dropdown Tab'!$G$73,IF(C50='App Dropdown Tab'!$F$74,'App Dropdown Tab'!$G$74,IF(C50='App Dropdown Tab'!$F$75,'App Dropdown Tab'!$G$75,IF(C50='App Dropdown Tab'!$F$78,'App Dropdown Tab'!$G$78,IF(Application!C50='App Dropdown Tab'!$F$79,'App Dropdown Tab'!$G$79,IF(Application!C50='App Dropdown Tab'!$F$80,'App Dropdown Tab'!$G$80,IF(Application!C50='App Dropdown Tab'!$F$81,'App Dropdown Tab'!$G$81,IF(Application!C50='App Dropdown Tab'!$F$63,'App Dropdown Tab'!$G$63))))))))))))))))))))))))))))))))))))))))))))))))))))","v":false}]
["Baseline Performance:",null,null,"Improvement Achieved:"]
["Do you plan to continue to measure improvement in this area or select a different area for next year?"]
[]
[]
["Environmental Category:","Environmental Aspect:","Environmental Indicator(s)\n","Units","Normalizing Factor used:","If used, Normalizing Factor based on?"]
[null,null,null,{"$f":"IF(C56='App Dropdown Tab'!$F$3,'App Dropdown Tab'!$G$3,IF(Application!C56='App Dropdown Tab'!$F$4,'App Dropdown Tab'!$G$4,IF(C56='App Dropdown Tab'!$F$7,'App Dropdown Tab'!$G$7,IF(C56='App Dropdown Tab'!$F$8,'App Dropdown Tab'!$G$8,IF(C56='App Dropdown Tab'!$F$9,'App Dropdown Tab'!$G$9,IF(C56='App Dropdown Tab'!$F$11,'App Dropdown Tab'!$G$11,IF(C56='App Dropdown Tab'!$F$14,'App Dropdown Tab'!$G$14,IF(C56='App Dropdown Tab'!$F$15,'App Dropdown Tab'!$G$15,IF(C56='App Dropdown Tab'!$F$16,'App Dropdown Tab'!$G$16,IF(C56='App Dropdown Tab'!$F$17,'App Dropdown Tab'!$G$17,IF(C56='App Dropdown Tab'!$F$18,'App Dropdown Tab'!$G$18,IF(C56='App Dropdown Tab'!$F$19,'App Dropdown Tab'!$G$19,IF(C56='App Dropdown Tab'!$F$20,'App Dropdown Tab'!$G$20,IF(C56='App Dropdown Tab'!$F$21,'App Dropdown Tab'!$G$21,IF(C56='App Dropdown Tab'!$F$22,'App Dropdown Tab'!$G$22,IF(C56='App Dropdown Tab'!$F$23,'App Dropdown Tab'!$G$23,IF(C56='App Dropdown Tab'!$F$26,'App Dropdown Tab'!$G$26,IF(C56='App Dropdown Tab'!$F$27,'App Dropdown Tab'!$G$27,IF(C56='App Dropdown Tab'!$F$30,'App Dropdown Tab'!$G$30,IF(C56='App Dropdown Tab'!$F$31,'App Dropdown Tab'!$G$31,IF(C56='App Dropdown Tab'!$F$32,'App Dropdown Tab'!$G$32,IF(C56='App Dropdown Tab'!$F$33,'App Dropdown Tab'!$G$33,IF(C56='App Dropdown Tab'!$F$34,'App Dropdown Tab'!$G$34,IF(C56='App Dropdown Tab'!$F$35,'App Dropdown Tab'!$G$35,IF(C56='App Dropdown Tab'!$F$36,'App Dropdown Tab'!$G$36,IF(C56='App Dropdown Tab'!$F$37,'App Dropdown Tab'!$G$37,IF(C56='App Dropdown Tab'!$F$38,'App Dropdown Tab'!$G$38,IF(C56='App Dropdown Tab'!$F$39,'App Dropdown Tab'!$G$39,IF(C56='App Dropdown Tab'!$F$40,'App Dropdown Tab'!$G$40,IF(C56='App Dropdown Tab'!$F$43,'App Dropdown Tab'!$G$43,IF(C56='App Dropdown Tab'!$F$44,'App Dropdown Tab'!$G$44,IF(C56='App Dropdown Tab'!$F$45,'App Dropdown Tab'!$G$45,IF(C56='App Dropdown Tab'!$F$46,'App Dropdown Tab'!$G$46,IF(C56='App Dropdown Tab'!$F$47,'App Dropdown Tab'!$G$47,IF(C56='App Dropdown Tab'!$F$48,'App Dropdown Tab'!$G$48,IF(C56='App Dropdown Tab'!$F$49,'App Dropdown Tab'!$G$49,IF(C56='App Dropdown Tab'!$F$50,'App Dropdown Tab'!$G$50,IF(C56='App Dropdown Tab'!$F$53,'App Dropdown Tab'!$G$53,IF(C56='App Dropdown Tab'!$F$54,'App Dropdown Tab'!$G$54,IF(C56='App Dropdown Tab'!$F$55,'App Dropdown Tab'!$G$55,IF(C56='App Dropdown Tab'!$F$56,'App Dropdown Tab'!$G$56,IF(C56='App Dropdown Tab'!$F$66,'App Dropdown Tab'!$G$66,IF(C56='App Dropdown Tab'!$F$69,'App Dropdown Tab'!$G$69,IF(C56='App Dropdown Tab'!$F$72,'App Dropdown Tab'!$G$72,IF(C56='App Dropdown Tab'!$F$73,'App Dropdown Tab'!$G$73,IF(C56='App Dropdown Tab'!$F$74,'App Dropdown Tab'!$G$74,IF(C56='App Dropdown Tab'!$F$75,'App Dropdown Tab'!$G$75,IF(C56='App Dropdown Tab'!$F$78,'App Dropdown Tab'!$G$78,IF(Application!C56='App Dropdown Tab'!$F$79,'App Dropdown Tab'!$G$79,IF(Application!C56='App Dropdown Tab'!$F$80,'App Dropdown Tab'!$G$80,IF(Application!C56='App Dropdown Tab'!$F$81,'App Dropdown Tab'!$G$81)))))))))))))))))))))))))))))))))))))))))))))))))))","v":false}]
["Baseline Performance:",null,null,"Improvement Achieved:"]
["Do you plan to continue to measure improvement in this area or select a different area for next year?"]
[]
["Future Environmental Commitments"]
["Please attach a brief description of the activities or process changes to be undertaken to accomplish the selected initiatives"]
["Environmental Category:","Environmental Aspect:","Environmental Indicator(s)\n","Units","Normalizing Factor used:","If used, Normalizing Factor based on?"]
[null,null,null,{"$f":"IF(C63='App Dropdown Tab'!$F$3,'App Dropdown Tab'!$G$3,IF(Application!C63='App Dropdown Tab'!$F$4,'App Dropdown Tab'!$G$4,IF(C63='App Dropdown Tab'!$F$7,'App Dropdown Tab'!$G$7,IF(C63='App Dropdown Tab'!$F$8,'App Dropdown Tab'!$G$8,IF(C63='App Dropdown Tab'!$F$9,'App Dropdown Tab'!$G$9,IF(C63='App Dropdown Tab'!$F$11,'App Dropdown Tab'!$G$11,IF(C63='App Dropdown Tab'!$F$14,'App Dropdown Tab'!$G$14,IF(C63='App Dropdown Tab'!$F$15,'App Dropdown Tab'!$G$15,IF(C63='App Dropdown Tab'!$F$16,'App Dropdown Tab'!$G$16,IF(C63='App Dropdown Tab'!$F$17,'App Dropdown Tab'!$G$17,IF(C63='App Dropdown Tab'!$F$18,'App Dropdown Tab'!$G$18,IF(C63='App Dropdown Tab'!$F$19,'App Dropdown Tab'!$G$19,IF(C63='App Dropdown Tab'!$F$20,'App Dropdown Tab'!$G$20,IF(C63='App Dropdown Tab'!$F$21,'App Dropdown Tab'!$G$21,IF(C63='App Dropdown Tab'!$F$22,'App Dropdown Tab'!$G$22,IF(C63='App Dropdown Tab'!$F$23,'App Dropdown Tab'!$G$23,IF(C63='App Dropdown Tab'!$F$26,'App Dropdown Tab'!$G$26,IF(C63='App Dropdown Tab'!$F$27,'App Dropdown Tab'!$G$27,IF(C63='App Dropdown Tab'!$F$30,'App Dropdown Tab'!$G$30,IF(C63='App Dropdown Tab'!$F$31,'App Dropdown Tab'!$G$31,IF(C63='App Dropdown Tab'!$F$32,'App Dropdown Tab'!$G$32,IF(C63='App Dropdown Tab'!$F$33,'App Dropdown Tab'!$G$33,IF(C63='App Dropdown Tab'!$F$34,'App Dropdown Tab'!$G$34,IF(C63='App Dropdown Tab'!$F$35,'App Dropdown Tab'!$G$35,IF(C63='App Dropdown Tab'!$F$36,'App Dropdown Tab'!$G$36,IF(C63='App Dropdown Tab'!$F$37,'App Dropdown Tab'!$G$37,IF(C63='App Dropdown Tab'!$F$38,'App Dropdown Tab'!$G$38,IF(C63='App Dropdown Tab'!$F$39,'App Dropdown Tab'!$G$39,IF(C63='App Dropdown Tab'!$F$40,'App Dropdown Tab'!$G$40,IF(C63='App Dropdown Tab'!$F$43,'App Dropdown Tab'!$G$43,IF(C63='App Dropdown Tab'!$F$44,'App Dropdown Tab'!$G$44,IF(C63='App Dropdown Tab'!$F$45,'App Dropdown Tab'!$G$45,IF(C63='App Dropdown Tab'!$F$46,'App Dropdown Tab'!$G$46,IF(C63='App Dropdown Tab'!$F$47,'App Dropdown Tab'!$G$47,IF(C63='App Dropdown Tab'!$F$48,'App Dropdown Tab'!$G$48,IF(C63='App Dropdown Tab'!$F$49,'App Dropdown Tab'!$G$49,IF(C63='App Dropdown Tab'!$F$50,'App Dropdown Tab'!$G$50,IF(C63='App Dropdown Tab'!$F$53,'App Dropdown Tab'!$G$53,IF(C63='App Dropdown Tab'!$F$54,'App Dropdown Tab'!$G$54,IF(C63='App Dropdown Tab'!$F$55,'App Dropdown Tab'!$G$55,IF(C63='App Dropdown Tab'!$F$56,'App Dropdown Tab'!$G$56,IF(C63='App Dropdown Tab'!$F$66,'App Dropdown Tab'!$G$66,IF(C63='App Dropdown Tab'!$F$69,'App Dropdown Tab'!$G$69,IF(C63='App Dropdown Tab'!$F$72,'App Dropdown Tab'!$G$72,IF(C63='App Dropdown Tab'!$F$73,'App Dropdown Tab'!$G$73,IF(C63='App Dropdown Tab'!$F$74,'App Dropdown Tab'!$G$74,IF(C63='App Dropdown Tab'!$F$75,'App Dropdown Tab'!$G$75,IF(C63='App Dropdown Tab'!$F$78,'App Dropdown Tab'!$G$78,IF(Application!C63='App Dropdown Tab'!$F$79,'App Dropdown Tab'!$G$79,IF(Application!C63='App Dropdown Tab'!$F$80,'App Dropdown Tab'!$G$80,IF(Application!C63='App Dropdown Tab'!$F$81,'App Dropdown Tab'!$G$81,IF(Application!C63='App Dropdown Tab'!$F$63,'App Dropdown Tab'!$G$63))))))))))))))))))))))))))))))))))))))))))))))))))))","v":false}]
["Baseline Performance\n(Calendar Year)","Performance \n(Baseline)","Anticipated Performance \n(Year 1)","Performance \n(Year 1)"]
[]
["Anticpiated Performance \n(Year 2)","Performance (Year 2)","Anticipated Performance \n(Year 3)","Performance (Year 3)"]
[]
["Would you like to commit to report on another Improvement?"]
[]
["Environmental Category:","Environmental Aspect:","Environmental Indicator(s)\n","Units","Normalizing Factor used:","If used, Normalizing Factor based on?"]
[null,null,null,{"$f":"IF(C71='App Dropdown Tab'!$F$3,'App Dropdown Tab'!$G$3,IF(Application!C71='App Dropdown Tab'!$F$4,'App Dropdown Tab'!$G$4,IF(C71='App Dropdown Tab'!$F$7,'App Dropdown Tab'!$G$7,IF(C71='App Dropdown Tab'!$F$8,'App Dropdown Tab'!$G$8,IF(C71='App Dropdown Tab'!$F$9,'App Dropdown Tab'!$G$9,IF(C71='App Dropdown Tab'!$F$11,'App Dropdown Tab'!$G$11,IF(C71='App Dropdown Tab'!$F$14,'App Dropdown Tab'!$G$14,IF(C71='App Dropdown Tab'!$F$15,'App Dropdown Tab'!$G$15,IF(C71='App Dropdown Tab'!$F$16,'App Dropdown Tab'!$G$16,IF(C71='App Dropdown Tab'!$F$17,'App Dropdown Tab'!$G$17,IF(C71='App Dropdown Tab'!$F$18,'App Dropdown Tab'!$G$18,IF(C71='App Dropdown Tab'!$F$19,'App Dropdown Tab'!$G$19,IF(C71='App Dropdown Tab'!$F$20,'App Dropdown Tab'!$G$20,IF(C71='App Dropdown Tab'!$F$21,'App Dropdown Tab'!$G$21,IF(C71='App Dropdown Tab'!$F$22,'App Dropdown Tab'!$G$22,IF(C71='App Dropdown Tab'!$F$23,'App Dropdown Tab'!$G$23,IF(C71='App Dropdown Tab'!$F$26,'App Dropdown Tab'!$G$26,IF(C71='App Dropdown Tab'!$F$27,'App Dropdown Tab'!$G$27,IF(C71='App Dropdown Tab'!$F$30,'App Dropdown Tab'!$G$30,IF(C71='App Dropdown Tab'!$F$31,'App Dropdown Tab'!$G$31,IF(C71='App Dropdown Tab'!$F$32,'App Dropdown Tab'!$G$32,IF(C71='App Dropdown Tab'!$F$33,'App Dropdown Tab'!$G$33,IF(C71='App Dropdown Tab'!$F$34,'App Dropdown Tab'!$G$34,IF(C71='App Dropdown Tab'!$F$35,'App Dropdown Tab'!$G$35,IF(C71='App Dropdown Tab'!$F$36,'App Dropdown Tab'!$G$36,IF(C71='App Dropdown Tab'!$F$37,'App Dropdown Tab'!$G$37,IF(C71='App Dropdown Tab'!$F$38,'App Dropdown Tab'!$G$38,IF(C71='App Dropdown Tab'!$F$39,'App Dropdown Tab'!$G$39,IF(C71='App Dropdown Tab'!$F$40,'App Dropdown Tab'!$G$40,IF(C71='App Dropdown Tab'!$F$43,'App Dropdown Tab'!$G$43,IF(C71='App Dropdown Tab'!$F$44,'App Dropdown Tab'!$G$44,IF(C71='App Dropdown Tab'!$F$45,'App Dropdown Tab'!$G$45,IF(C71='App Dropdown Tab'!$F$46,'App Dropdown Tab'!$G$46,IF(C71='App Dropdown Tab'!$F$47,'App Dropdown Tab'!$G$47,IF(C71='App Dropdown Tab'!$F$48,'App Dropdown Tab'!$G$48,IF(C71='App Dropdown Tab'!$F$49,'App Dropdown Tab'!$G$49,IF(C71='App Dropdown Tab'!$F$50,'App Dropdown Tab'!$G$50,IF(C71='App Dropdown Tab'!$F$53,'App Dropdown Tab'!$G$53,IF(C71='App Dropdown Tab'!$F$54,'App Dropdown Tab'!$G$54,IF(C71='App Dropdown Tab'!$F$55,'App Dropdown Tab'!$G$55,IF(C71='App Dropdown Tab'!$F$56,'App Dropdown Tab'!$G$56,IF(C71='App Dropdown Tab'!$F$66,'App Dropdown Tab'!$G$66,IF(C71='App Dropdown Tab'!$F$69,'App Dropdown Tab'!$G$69,IF(C71='App Dropdown Tab'!$F$72,'App Dropdown Tab'!$G$72,IF(C71='App Dropdown Tab'!$F$73,'App Dropdown Tab'!$G$73,IF(C71='App Dropdown Tab'!$F$74,'App Dropdown Tab'!$G$74,IF(C71='App Dropdown Tab'!$F$75,'App Dropdown Tab'!$G$75,IF(C71='App Dropdown Tab'!$F$78,'App Dropdown Tab'!$G$78,IF(Application!C71='App Dropdown Tab'!$F$79,'App Dropdown Tab'!$G$79,IF(Application!C71='App Dropdown Tab'!$F$80,'App Dropdown Tab'!$G$80,IF(Application!C71='App Dropdown Tab'!$F$81,'App Dropdown Tab'!$G$81,IF(Application!C71='App Dropdown Tab'!$F$63,'App Dropdown Tab'!$G$63))))))))))))))))))))))))))))))))))))))))))))))))))))","v":false}]
["Baseline Performance\n(Calendar Year)","Performance \n(Baseline)","Anticipated Performance \n(Year 1)","Performance \n(Year 1)"]
[]
["Anticpiated Performance \n(Year 2)","Performance (Year 2)","Anticipated Performance \n(Year 3)","Performance (Year 3)"]
[]
[]
["Environmental Management System (EMS) Information"]
["Has your facility developed an EMS? "]
["If not, do you commit to developing an EMS?"]
["Is your EMS certified?"]
["By which certifying body?"]
["Have you done a comprehensive review of all activities conducted at your facility (i.e. aspect analysis) that could impact the environment? ",null,null,"Have you classified your aspects based on potential harm to the environment, community concerns, and/or other objective factors (i.e.impact analysis)?"]
["Have you completed at least one full EMS cycle?  "]
["Did this cycle include an update of your aspect analysis?",null,null,"When did you last update your aspect analysis? (Mo/Yr)"]
["Did this cycle include an internal EMS audit? ",null,null,"What is the date of your next internal EMS audit? (Mo/Yr)"]
["Did this cycle include an internal compliance audit? ",null,null,"What is the date of your next compliance audit? (Mo/Yr)"]
["If your EMS is uncertified or you have commited to develop an EMS, please indicate which of the following elements or procedures have been completed and the approximate date on which the element or procedure was completed:"]
["EMS Element","Completed","Date completed","EMS Element","Completed","Date completed"]
["Environmental Policy:",null,null,"Document Control:"]
["Identifying Environmental Aspects:",null,null,"Operational Controls:"]
["Identifying Legal and Other Requirments:",null,null,"Emergency Preparedness and Response:"]
["Establishing Environmental Management Programs:",null,null,"Nonconformance and corrective and preventive action:"]
["Setting Objectives and Targets:",null,null,"Monitoring & Measurement: "]
["Structure and Responsibility:",null,null,"Records:  "]
["Training, Awareness, and Competence:",null,null,"EMS Audit: "]
["Communication:",null,null,"Management review:  "]
["EMS Documentation:"]
["Have you completed an objective third-party audit of your EMS?   (NOTE: Not a requirement for recognition)  "]
["Date of Assessment:\n(Mo/Yr)",null,null,"What method of third-party assessment did you use?"]
["How often is your third-party audit scheduled?",null,null,"What is the date of your next third-party assessment? (Mo/Yr)"]
["Have you developed a communication plan for informing the public and/or your surrounding community on environmental impacts?  "]
["Please provide, as an attachment, a brief description of how you identify and respond to community concerns and inform community members of important matters that affect them."]
["How will you make your annual performance report available to the public?",null,null,"Are there any ongoing citizen suits against your facility?"]
["Please provide, as an attachment, a brief description of the citizen suit and status."]
[]
["Application and Participation Statement"]
["On behalf of: __________________________________________\n                    (Organization name)",{"$f":"B6","v":0}]
["I certify that:"]
["●  I have read and agree to the terms and conditions for Application and Participation in the Arizona Voluntary Environmental Stewardship Program, as specified in the program guide and Application instructions;"]
["●  I have personally examined and am familiar with the information contained in this Application. The information contained in this Application is, to the best of my knowledge and based on reasonable inquiry, true, accurate, and complete, and I have no reason to believe the facility would not meet all program requirements;"]
["●  My facility has conducted an objective assessment of its compliance with all applicable federal, State, tribal, county and city environmental requirements, and the facility has corrected all identified instances ot potential or actual noncompliance;"]
["●  Based on the foregoing compliance assessment and subsequent corrective actions (if any were necessary), my facility is, to the best of my knowledge and based on reasonable inquiry, currently in compliance with applicable federal, State, tribal, and local environmental reguirements."]
["I acknowledge that membership in the Arizona Voluntary Environmental Stewardship Program is voluntary and that membership in the Program does not constitute a license that is required for regulated activities. Also, that ADEQ’s decision to approve or deny membership in the Program cannot be appealed through the administrative hearings process."]
["I am a senior facility manager and fully authorized to execute this statement on behalf of the corporation or other legal entity whose facility is applying to this Program."]
["NOTE: In an effort to reduce paper consumption, ADEQ will accept an electronic submittal of this application, provided that the application is emailed to the department from an establish corporate account."]
["Printed Name/Title:"]
["Phone Number:",null,"Fax Number:",null,"Email address:"]
[]
[]
[]
[]
[]
[]
[]
[]
[]
[]
[]
[]
[]
[]
[]
[]
[]
[]
[]
[]
[]
[]
[]
[]
[]
[]
[]
[null,null,null,null,null,null,{"$f":"IF(F145='App Dropdown Tab'!$F$3,'App Dropdown Tab'!$G$3,IF(Application!F145='App Dropdown Tab'!$F$4,'App Dropdown Tab'!$G$4,IF(F145='App Dropdown Tab'!$F$7,'App Dropdown Tab'!$G$7,IF(F145='App Dropdown Tab'!$F$8,'App Dropdown Tab'!$G$8,IF(F145='App Dropdown Tab'!$F$9,'App Dropdown Tab'!$G$9,IF(F145='App Dropdown Tab'!$F$11,'App Dropdown Tab'!$G$11,IF(F145='App Dropdown Tab'!$F$14,'App Dropdown Tab'!$G$14,IF(F145='App Dropdown Tab'!$F$15,'App Dropdown Tab'!$G$15,IF(F145='App Dropdown Tab'!$F$16,'App Dropdown Tab'!$G$16,IF(F145='App Dropdown Tab'!$F$17,'App Dropdown Tab'!$G$17,IF(F145='App Dropdown Tab'!$F$18,'App Dropdown Tab'!$G$18,IF(F145='App Dropdown Tab'!$F$19,'App Dropdown Tab'!$G$19,IF(F145='App Dropdown Tab'!$F$20,'App Dropdown Tab'!$G$20,IF(F145='App Dropdown Tab'!$F$21,'App Dropdown Tab'!$G$21,IF(F145='App Dropdown Tab'!$F$22,'App Dropdown Tab'!$G$22,IF(F145='App Dropdown Tab'!$F$23,'App Dropdown Tab'!$G$23,IF(F145='App Dropdown Tab'!$F$26,'App Dropdown Tab'!$G$26,IF(F145='App Dropdown Tab'!$F$27,'App Dropdown Tab'!$G$27,IF(F145='App Dropdown Tab'!$F$30,'App Dropdown Tab'!$G$30,IF(F145='App Dropdown Tab'!$F$31,'App Dropdown Tab'!$G$31,IF(F145='App Dropdown Tab'!$F$32,'App Dropdown Tab'!$G$32,IF(F145='App Dropdown Tab'!$F$33,'App Dropdown Tab'!$G$33,IF(F145='App Dropdown Tab'!$F$34,'App Dropdown Tab'!$G$34,IF(F145='App Dropdown Tab'!$F$35,'App Dropdown Tab'!$G$35,IF(F145='App Dropdown Tab'!$F$36,'App Dropdown Tab'!$G$36,IF(F145='App Dropdown Tab'!$F$37,'App Dropdown Tab'!$G$37,IF(F145='App Dropdown Tab'!$F$38,'App Dropdown Tab'!$G$38,IF(F145='App Dropdown Tab'!$F$39,'App Dropdown Tab'!$G$39,IF(F145='App Dropdown Tab'!$F$40,'App Dropdown Tab'!$G$40,IF(F145='App Dropdown Tab'!$F$43,'App Dropdown Tab'!$G$43,IF(F145='App Dropdown Tab'!$F$44,'App Dropdown Tab'!$G$44,IF(F145='App Dropdown Tab'!$F$45,'App Dropdown Tab'!$G$45,IF(F145='App Dropdown Tab'!$F$46,'App Dropdown Tab'!$G$46,IF(F145='App Dropdown Tab'!$F$47,'App Dropdown Tab'!$G$47,IF(F145='App Dropdown Tab'!$F$48,'App Dropdown Tab'!$G$48,IF(F145='App Dropdown Tab'!$F$49,'App Dropdown Tab'!$G$49,IF(F145='App Dropdown Tab'!$F$50,'App Dropdown Tab'!$G$50,IF(F145='App Dropdown Tab'!$F$53,'App Dropdown Tab'!$G$53,IF(F145='App Dropdown Tab'!$F$54,'App Dropdown Tab'!$G$54,IF(F145='App Dropdown Tab'!$F$55,'App Dropdown Tab'!$G$55,IF(F145='App Dropdown Tab'!$F$56,'App Dropdown Tab'!$G$56,IF(F145='App Dropdown Tab'!$F$66,'App Dropdown Tab'!$G$66,IF(F145='App Dropdown Tab'!$F$69,'App Dropdown Tab'!$G$69,IF(F145='App Dropdown Tab'!$F$72,'App Dropdown Tab'!$G$72,IF(F145='App Dropdown Tab'!$F$73,'App Dropdown Tab'!$G$73,IF(F145='App Dropdown Tab'!$F$74,'App Dropdown Tab'!$G$74,IF(F145='App Dropdown Tab'!$F$75,'App Dropdown Tab'!$G$75,IF(F145='App Dropdown Tab'!$F$78,'App Dropdown Tab'!$G$78,IF(Application!F145='App Dropdown Tab'!$F$79,'App Dropdown Tab'!$G$79,IF(Application!F145='App Dropdown Tab'!$F$80,'App Dropdown Tab'!$G$80,IF(Application!F145='App Dropdown Tab'!$F$81,'App Dropdown Tab'!$G$81,IF(Application!F145='App Dropdown Tab'!$F$63,'App Dropdown Tab'!$G$63))))))))))))))))))))))))))))))))))))))))))))))))))))","v":false}]
[]
[]
[]
[]
[null,null,null,null,null,null,{"$f":"IF(F150='App Dropdown Tab'!$F$3,'App Dropdown Tab'!$G$3,IF(Application!F150='App Dropdown Tab'!$F$4,'App Dropdown Tab'!$G$4,IF(F150='App Dropdown Tab'!$F$7,'App Dropdown Tab'!$G$7,IF(F150='App Dropdown Tab'!$F$8,'App Dropdown Tab'!$G$8,IF(F150='App Dropdown Tab'!$F$9,'App Dropdown Tab'!$G$9,IF(F150='App Dropdown Tab'!$F$11,'App Dropdown Tab'!$G$11,IF(F150='App Dropdown Tab'!$F$14,'App Dropdown Tab'!$G$14,IF(F150='App Dropdown Tab'!$F$15,'App Dropdown Tab'!$G$15,IF(F150='App Dropdown Tab'!$F$16,'App Dropdown Tab'!$G$16,IF(F150='App Dropdown Tab'!$F$17,'App Dropdown Tab'!$G$17,IF(F150='App Dropdown Tab'!$F$18,'App Dropdown Tab'!$G$18,IF(F150='App Dropdown Tab'!$F$19,'App Dropdown Tab'!$G$19,IF(F150='App Dropdown Tab'!$F$20,'App Dropdown Tab'!$G$20,IF(F150='App Dropdown Tab'!$F$21,'App Dropdown Tab'!$G$21,IF(F150='App Dropdown Tab'!$F$22,'App Dropdown Tab'!$G$22,IF(F150='App Dropdown Tab'!$F$23,'App Dropdown Tab'!$G$23,IF(F150='App Dropdown Tab'!$F$26,'App Dropdown Tab'!$G$26,IF(F150='App Dropdown Tab'!$F$27,'App Dropdown Tab'!$G$27,IF(F150='App Dropdown Tab'!$F$30,'App Dropdown Tab'!$G$30,IF(F150='App Dropdown Tab'!$F$31,'App Dropdown Tab'!$G$31,IF(F150='App Dropdown Tab'!$F$32,'App Dropdown Tab'!$G$32,IF(F150='App Dropdown Tab'!$F$33,'App Dropdown Tab'!$G$33,IF(F150='App Dropdown Tab'!$F$34,'App Dropdown Tab'!$G$34,IF(F150='App Dropdown Tab'!$F$35,'App Dropdown Tab'!$G$35,IF(F150='App Dropdown Tab'!$F$36,'App Dropdown Tab'!$G$36,IF(F150='App Dropdown Tab'!$F$37,'App Dropdown Tab'!$G$37,IF(F150='App Dropdown Tab'!$F$38,'App Dropdown Tab'!$G$38,IF(F150='App Dropdown Tab'!$F$39,'App Dropdown Tab'!$G$39,IF(F150='App Dropdown Tab'!$F$40,'App Dropdown Tab'!$G$40,IF(F150='App Dropdown Tab'!$F$43,'App Dropdown Tab'!$G$43,IF(F150='App Dropdown Tab'!$F$44,'App Dropdown Tab'!$G$44,IF(F150='App Dropdown Tab'!$F$45,'App Dropdown Tab'!$G$45,IF(F150='App Dropdown Tab'!$F$46,'App Dropdown Tab'!$G$46,IF(F150='App Dropdown Tab'!$F$47,'App Dropdown Tab'!$G$47,IF(F150='App Dropdown Tab'!$F$48,'App Dropdown Tab'!$G$48,IF(F150='App Dropdown Tab'!$F$49,'App Dropdown Tab'!$G$49,IF(F150='App Dropdown Tab'!$F$50,'App Dropdown Tab'!$G$50,IF(F150='App Dropdown Tab'!$F$53,'App Dropdown Tab'!$G$53,IF(F150='App Dropdown Tab'!$F$54,'App Dropdown Tab'!$G$54,IF(F150='App Dropdown Tab'!$F$55,'App Dropdown Tab'!$G$55,IF(F150='App Dropdown Tab'!$F$56,'App Dropdown Tab'!$G$56,IF(F150='App Dropdown Tab'!$F$66,'App Dropdown Tab'!$G$66,IF(F150='App Dropdown Tab'!$F$69,'App Dropdown Tab'!$G$69,IF(F150='App Dropdown Tab'!$F$72,'App Dropdown Tab'!$G$72,IF(F150='App Dropdown Tab'!$F$73,'App Dropdown Tab'!$G$73,IF(F150='App Dropdown Tab'!$F$74,'App Dropdown Tab'!$G$74,IF(F150='App Dropdown Tab'!$F$75,'App Dropdown Tab'!$G$75,IF(F150='App Dropdown Tab'!$F$78,'App Dropdown Tab'!$G$78,IF(Application!F150='App Dropdown Tab'!$F$79,'App Dropdown Tab'!$G$79,IF(Application!F150='App Dropdown Tab'!$F$80,'App Dropdown Tab'!$G$80,IF(Application!F150='App Dropdown Tab'!$F$81,'App Dropdown Tab'!$G$81,IF(Application!F150='App Dropdown Tab'!$F$63,'App Dropdown Tab'!$G$63))))))))))))))))))))))))))))))))))))))))))))))))))))","v":false}]
[]
[]
[]
[]
[]
[null,null,null,null,null,null,{"$f":"IF(F156='App Dropdown Tab'!$F$3,'App Dropdown Tab'!$G$3,IF(Application!F156='App Dropdown Tab'!$F$4,'App Dropdown Tab'!$G$4,IF(F156='App Dropdown Tab'!$F$7,'App Dropdown Tab'!$G$7,IF(F156='App Dropdown Tab'!$F$8,'App Dropdown Tab'!$G$8,IF(F156='App Dropdown Tab'!$F$9,'App Dropdown Tab'!$G$9,IF(F156='App Dropdown Tab'!$F$11,'App Dropdown Tab'!$G$11,IF(F156='App Dropdown Tab'!$F$14,'App Dropdown Tab'!$G$14,IF(F156='App Dropdown Tab'!$F$15,'App Dropdown Tab'!$G$15,IF(F156='App Dropdown Tab'!$F$16,'App Dropdown Tab'!$G$16,IF(F156='App Dropdown Tab'!$F$17,'App Dropdown Tab'!$G$17,IF(F156='App Dropdown Tab'!$F$18,'App Dropdown Tab'!$G$18,IF(F156='App Dropdown Tab'!$F$19,'App Dropdown Tab'!$G$19,IF(F156='App Dropdown Tab'!$F$20,'App Dropdown Tab'!$G$20,IF(F156='App Dropdown Tab'!$F$21,'App Dropdown Tab'!$G$21,IF(F156='App Dropdown Tab'!$F$22,'App Dropdown Tab'!$G$22,IF(F156='App Dropdown Tab'!$F$23,'App Dropdown Tab'!$G$23,IF(F156='App Dropdown Tab'!$F$26,'App Dropdown Tab'!$G$26,IF(F156='App Dropdown Tab'!$F$27,'App Dropdown Tab'!$G$27,IF(F156='App Dropdown Tab'!$F$30,'App Dropdown Tab'!$G$30,IF(F156='App Dropdown Tab'!$F$31,'App Dropdown Tab'!$G$31,IF(F156='App Dropdown Tab'!$F$32,'App Dropdown Tab'!$G$32,IF(F156='App Dropdown Tab'!$F$33,'App Dropdown Tab'!$G$33,IF(F156='App Dropdown Tab'!$F$34,'App Dropdown Tab'!$G$34,IF(F156='App Dropdown Tab'!$F$35,'App Dropdown Tab'!$G$35,IF(F156='App Dropdown Tab'!$F$36,'App Dropdown Tab'!$G$36,IF(F156='App Dropdown Tab'!$F$37,'App Dropdown Tab'!$G$37,IF(F156='App Dropdown Tab'!$F$38,'App Dropdown Tab'!$G$38,IF(F156='App Dropdown Tab'!$F$39,'App Dropdown Tab'!$G$39,IF(F156='App Dropdown Tab'!$F$40,'App Dropdown Tab'!$G$40,IF(F156='App Dropdown Tab'!$F$43,'App Dropdown Tab'!$G$43,IF(F156='App Dropdown Tab'!$F$44,'App Dropdown Tab'!$G$44,IF(F156='App Dropdown Tab'!$F$45,'App Dropdown Tab'!$G$45,IF(F156='App Dropdown Tab'!$F$46,'App Dropdown Tab'!$G$46,IF(F156='App Dropdown Tab'!$F$47,'App Dropdown Tab'!$G$47,IF(F156='App Dropdown Tab'!$F$48,'App Dropdown Tab'!$G$48,IF(F156='App Dropdown Tab'!$F$49,'App Dropdown Tab'!$G$49,IF(F156='App Dropdown Tab'!$F$50,'App Dropdown Tab'!$G$50,IF(F156='App Dropdown Tab'!$F$53,'App Dropdown Tab'!$G$53,IF(F156='App Dropdown Tab'!$F$54,'App Dropdown Tab'!$G$54,IF(F156='App Dropdown Tab'!$F$55,'App Dropdown Tab'!$G$55,IF(F156='App Dropdown Tab'!$F$56,'App Dropdown Tab'!$G$56,IF(F156='App Dropdown Tab'!$F$66,'App Dropdown Tab'!$G$66,IF(F156='App Dropdown Tab'!$F$69,'App Dropdown Tab'!$G$69,IF(F156='App Dropdown Tab'!$F$72,'App Dropdown Tab'!$G$72,IF(F156='App Dropdown Tab'!$F$73,'App Dropdown Tab'!$G$73,IF(F156='App Dropdown Tab'!$F$74,'App Dropdown Tab'!$G$74,IF(F156='App Dropdown Tab'!$F$75,'App Dropdown Tab'!$G$75,IF(F156='App Dropdown Tab'!$F$78,'App Dropdown Tab'!$G$78,IF(Application!F156='App Dropdown Tab'!$F$79,'App Dropdown Tab'!$G$79,IF(Application!F156='App Dropdown Tab'!$F$80,'App Dropdown Tab'!$G$80,IF(Application!F156='App Dropdown Tab'!$F$81,'App Dropdown Tab'!$G$81)))))))))))))))))))))))))))))))))))))))))))))))))))","v":false}]
[]
[]
[]
[]
[]
[]
[null,null,null,null,null,null,{"$f":"IF(F163='App Dropdown Tab'!$F$3,'App Dropdown Tab'!$G$3,IF(Application!F163='App Dropdown Tab'!$F$4,'App Dropdown Tab'!$G$4,IF(F163='App Dropdown Tab'!$F$7,'App Dropdown Tab'!$G$7,IF(F163='App Dropdown Tab'!$F$8,'App Dropdown Tab'!$G$8,IF(F163='App Dropdown Tab'!$F$9,'App Dropdown Tab'!$G$9,IF(F163='App Dropdown Tab'!$F$11,'App Dropdown Tab'!$G$11,IF(F163='App Dropdown Tab'!$F$14,'App Dropdown Tab'!$G$14,IF(F163='App Dropdown Tab'!$F$15,'App Dropdown Tab'!$G$15,IF(F163='App Dropdown Tab'!$F$16,'App Dropdown Tab'!$G$16,IF(F163='App Dropdown Tab'!$F$17,'App Dropdown Tab'!$G$17,IF(F163='App Dropdown Tab'!$F$18,'App Dropdown Tab'!$G$18,IF(F163='App Dropdown Tab'!$F$19,'App Dropdown Tab'!$G$19,IF(F163='App Dropdown Tab'!$F$20,'App Dropdown Tab'!$G$20,IF(F163='App Dropdown Tab'!$F$21,'App Dropdown Tab'!$G$21,IF(F163='App Dropdown Tab'!$F$22,'App Dropdown Tab'!$G$22,IF(F163='App Dropdown Tab'!$F$23,'App Dropdown Tab'!$G$23,IF(F163='App Dropdown Tab'!$F$26,'App Dropdown Tab'!$G$26,IF(F163='App Dropdown Tab'!$F$27,'App Dropdown Tab'!$G$27,IF(F163='App Dropdown Tab'!$F$30,'App Dropdown Tab'!$G$30,IF(F163='App Dropdown Tab'!$F$31,'App Dropdown Tab'!$G$31,IF(F163='App Dropdown Tab'!$F$32,'App Dropdown Tab'!$G$32,IF(F163='App Dropdown Tab'!$F$33,'App Dropdown Tab'!$G$33,IF(F163='App Dropdown Tab'!$F$34,'App Dropdown Tab'!$G$34,IF(F163='App Dropdown Tab'!$F$35,'App Dropdown Tab'!$G$35,IF(F163='App Dropdown Tab'!$F$36,'App Dropdown Tab'!$G$36,IF(F163='App Dropdown Tab'!$F$37,'App Dropdown Tab'!$G$37,IF(F163='App Dropdown Tab'!$F$38,'App Dropdown Tab'!$G$38,IF(F163='App Dropdown Tab'!$F$39,'App Dropdown Tab'!$G$39,IF(F163='App Dropdown Tab'!$F$40,'App Dropdown Tab'!$G$40,IF(F163='App Dropdown Tab'!$F$43,'App Dropdown Tab'!$G$43,IF(F163='App Dropdown Tab'!$F$44,'App Dropdown Tab'!$G$44,IF(F163='App Dropdown Tab'!$F$45,'App Dropdown Tab'!$G$45,IF(F163='App Dropdown Tab'!$F$46,'App Dropdown Tab'!$G$46,IF(F163='App Dropdown Tab'!$F$47,'App Dropdown Tab'!$G$47,IF(F163='App Dropdown Tab'!$F$48,'App Dropdown Tab'!$G$48,IF(F163='App Dropdown Tab'!$F$49,'App Dropdown Tab'!$G$49,IF(F163='App Dropdown Tab'!$F$50,'App Dropdown Tab'!$G$50,IF(F163='App Dropdown Tab'!$F$53,'App Dropdown Tab'!$G$53,IF(F163='App Dropdown Tab'!$F$54,'App Dropdown Tab'!$G$54,IF(F163='App Dropdown Tab'!$F$55,'App Dropdown Tab'!$G$55,IF(F163='App Dropdown Tab'!$F$56,'App Dropdown Tab'!$G$56,IF(F163='App Dropdown Tab'!$F$66,'App Dropdown Tab'!$G$66,IF(F163='App Dropdown Tab'!$F$69,'App Dropdown Tab'!$G$69,IF(F163='App Dropdown Tab'!$F$72,'App Dropdown Tab'!$G$72,IF(F163='App Dropdown Tab'!$F$73,'App Dropdown Tab'!$G$73,IF(F163='App Dropdown Tab'!$F$74,'App Dropdown Tab'!$G$74,IF(F163='App Dropdown Tab'!$F$75,'App Dropdown Tab'!$G$75,IF(F163='App Dropdown Tab'!$F$78,'App Dropdown Tab'!$G$78,IF(Application!F163='App Dropdown Tab'!$F$79,'App Dropdown Tab'!$G$79,IF(Application!F163='App Dropdown Tab'!$F$80,'App Dropdown Tab'!$G$80,IF(Application!F163='App Dropdown Tab'!$F$81,'App Dropdown Tab'!$G$81,IF(Application!F163='App Dropdown Tab'!$F$63,'App Dropdown Tab'!$G$63))))))))))))))))))))))))))))))))))))))))))))))))))))","v":false}]
[]
[]
[]
[]
[]
[]
[]
[null,null,null,null,null,null,{"$f":"IF(F171='App Dropdown Tab'!$F$3,'App Dropdown Tab'!$G$3,IF(Application!F171='App Dropdown Tab'!$F$4,'App Dropdown Tab'!$G$4,IF(F171='App Dropdown Tab'!$F$7,'App Dropdown Tab'!$G$7,IF(F171='App Dropdown Tab'!$F$8,'App Dropdown Tab'!$G$8,IF(F171='App Dropdown Tab'!$F$9,'App Dropdown Tab'!$G$9,IF(F171='App Dropdown Tab'!$F$11,'App Dropdown Tab'!$G$11,IF(F171='App Dropdown Tab'!$F$14,'App Dropdown Tab'!$G$14,IF(F171='App Dropdown Tab'!$F$15,'App Dropdown Tab'!$G$15,IF(F171='App Dropdown Tab'!$F$16,'App Dropdown Tab'!$G$16,IF(F171='App Dropdown Tab'!$F$17,'App Dropdown Tab'!$G$17,IF(F171='App Dropdown Tab'!$F$18,'App Dropdown Tab'!$G$18,IF(F171='App Dropdown Tab'!$F$19,'App Dropdown Tab'!$G$19,IF(F171='App Dropdown Tab'!$F$20,'App Dropdown Tab'!$G$20,IF(F171='App Dropdown Tab'!$F$21,'App Dropdown Tab'!$G$21,IF(F171='App Dropdown Tab'!$F$22,'App Dropdown Tab'!$G$22,IF(F171='App Dropdown Tab'!$F$23,'App Dropdown Tab'!$G$23,IF(F171='App Dropdown Tab'!$F$26,'App Dropdown Tab'!$G$26,IF(F171='App Dropdown Tab'!$F$27,'App Dropdown Tab'!$G$27,IF(F171='App Dropdown Tab'!$F$30,'App Dropdown Tab'!$G$30,IF(F171='App Dropdown Tab'!$F$31,'App Dropdown Tab'!$G$31,IF(F171='App Dropdown Tab'!$F$32,'App Dropdown Tab'!$G$32,IF(F171='App Dropdown Tab'!$F$33,'App Dropdown Tab'!$G$33,IF(F171='App Dropdown Tab'!$F$34,'App Dropdown Tab'!$G$34,IF(F171='App Dropdown Tab'!$F$35,'App Dropdown Tab'!$G$35,IF(F171='App Dropdown Tab'!$F$36,'App Dropdown Tab'!$G$36,IF(F171='App Dropdown Tab'!$F$37,'App Dropdown Tab'!$G$37,IF(F171='App Dropdown Tab'!$F$38,'App Dropdown Tab'!$G$38,IF(F171='App Dropdown Tab'!$F$39,'App Dropdown Tab'!$G$39,IF(F171='App Dropdown Tab'!$F$40,'App Dropdown Tab'!$G$40,IF(F171='App Dropdown Tab'!$F$43,'App Dropdown Tab'!$G$43,IF(F171='App Dropdown Tab'!$F$44,'App Dropdown Tab'!$G$44,IF(F171='App Dropdown Tab'!$F$45,'App Dropdown Tab'!$G$45,IF(F171='App Dropdown Tab'!$F$46,'App Dropdown Tab'!$G$46,IF(F171='App Dropdown Tab'!$F$47,'App Dropdown Tab'!$G$47,IF(F171='App Dropdown Tab'!$F$48,'App Dropdown Tab'!$G$48,IF(F171='App Dropdown Tab'!$F$49,'App Dropdown Tab'!$G$49,IF(F171='App Dropdown Tab'!$F$50,'App Dropdown Tab'!$G$50,IF(F171='App Dropdown Tab'!$F$53,'App Dropdown Tab'!$G$53,IF(F171='App Dropdown Tab'!$F$54,'App Dropdown Tab'!$G$54,IF(F171='App Dropdown Tab'!$F$55,'App Dropdown Tab'!$G$55,IF(F171='App Dropdown Tab'!$F$56,'App Dropdown Tab'!$G$56,IF(F171='App Dropdown Tab'!$F$66,'App Dropdown Tab'!$G$66,IF(F171='App Dropdown Tab'!$F$69,'App Dropdown Tab'!$G$69,IF(F171='App Dropdown Tab'!$F$72,'App Dropdown Tab'!$G$72,IF(F171='App Dropdown Tab'!$F$73,'App Dropdown Tab'!$G$73,IF(F171='App Dropdown Tab'!$F$74,'App Dropdown Tab'!$G$74,IF(F171='App Dropdown Tab'!$F$75,'App Dropdown Tab'!$G$75,IF(F171='App Dropdown Tab'!$F$78,'App Dropdown Tab'!$G$78,IF(Application!F171='App Dropdown Tab'!$F$79,'App Dropdown Tab'!$G$79,IF(Application!F171='App Dropdown Tab'!$F$80,'App Dropdown Tab'!$G$80,IF(Application!F171='App Dropdown Tab'!$F$81,'App Dropdown Tab'!$G$81,IF(Application!F171='App Dropdown Tab'!$F$63,'App Dropdown Tab'!$G$63))))))))))))))))))))))))))))))))))))))))))))))))))))","v":false}]

{"sheet":"App Dropdown Tab","index":1,"n_rows":295,"n_cols":447,"rows_kept":295,"cut":false,"hidden":true,"merged":[[0,25,0,50],[0,51,0,63],[6,51,6,63],[0,64,0,99],[0,216,0,219],[0,100,0,132],[6,106,6,108],[0,133,0,160],[0,161,0,173],[0,174,0,215]]}
["NAICS Industry Title",null,"Category","Aspects",null,"Indicators","Units",null,"Permitting","Recognition","Arizona Cities",null,null,null,null,null,null,null,null,null,null,null,null,null,null,"General Information",null,null,null,null,null,null,null,null,null,null,null,null,null,null,null,null,null,null,null,null,null,null,null,null,null,"Learn About VESP",null,null,null,null,null,null,null,null,null,null,null,null,"Facility Specific Information",null,null,null,null,null,null,null,null,null,null,null,null,null,null,null,null,null,null,null,null,null,null,null,null,null,null,null,null,null,null,null,null,null,null,null,"Reporting on Past Environmental Improvements",null,null,null,null,null,null,null,null,null,null,null,null,null,null,null,null,null,null,null,null,null,null,null,null,null,null,null,null,null,null,null,null,"Future Environmental Commitments",null,null,null,null,null,null,null,null,null,null,null,null,null,null,null,null,null,null,null,null,null,null,null,null,null,null,null,"EMS Information",null,null,null,null,null,null,null,null,null,null,null,null,"Additional EMS Information",null,null,null,null,null,null,null,null,null,null,null,null,null,null,null,null,null,null,null,null,null,null,null,null,null,null,null,null,null,null,null,null,null,null,null,null,null,null,null,null,null,"Certifier Information"]
[null,null,null,null,"Suppliers' Environmental Performance","Material Procurement",null,null,null,null,"AGUILA","ADEQ",null,null,null,null,null,null,null,null,null,null,null,null,null,"Type - Reg Facility","Type - Non Reg Facility","Name of Org","Location - Address","City","Zip Code","Parent Company","Parent Name","Parent Address","Parent City","Parent State","Parent Zip Code","Contact Name","Contact Title","Contact Phone","Contact Fax","Contact Email","Org Web-address","Mailing Address Same","Mailing address","Mailing City","Mailing State ","Mailing Zip Code","FTEs","Primary NAICS","Secondary NAICS","Press Release","Social Network Outlet","Conf. Mtg., Event","ADEQ Employee","Trade Assoc","Env Consultant","Media","ADEQ Web-page","Environmental Event","Existing Member","Sector Peer","Other","Specify","Square Footage","Total Acreage","Permitting Agency","Type of Permit","Permit Number","Permitting Agency","Type of Permit","Permit Number","Permitting Agency","Type of Permit","Permit Number","Permitting Agency","Type of Permit","Permit Number","Permitting Agency","Type of Permit","Permit Number","Permitting Agency","Type of Permit","Permit Number","Permitting Agency","Type of Permit","Permit Number","Permitting Agency","Type of Permit","Permit Number","Permitting Agency","Type of Permit","Permit Number","Permitting Agency","Type of Permit","Permit Number","Inspected within 3 years","Inspecting Agency","Violations Cited","All Violations addressed","Env Category","Env Aspect","Env Indicator","Units","Normalizing Factor Used","Normalizing Factor Basis","Baseline CY","Baseline Performance","Improvement CY","Improvement Achieved","Continue or Select New","Env Category","Env Aspect","Env Indicator","Units","Normalizing Factor Used","Normalizing Factor Basis","Baseline CY","Baseline Performance","Improvement CY","Improvement Achieved","Continue or Select New","Env Category","Env Aspect","Env Indicator","Units","Normalizing Factor Used","Normalizing Factor Basis","Baseline CY","Baseline Performance","Improvement CY","Improvement Achieved","Continue or Select New","Env Category","Env Aspect","Env Indicator","Units","Normalizing Factor Used","Normalizing Factor Basis","Baseline CY","Actual Baseline Performance","Anticipated Performance Year 1","Anticipated Performance Year 2","Anticipated Performance Year 3","Actual Performance Year 1","Actual Performance Year 2","Actual Performance Year 3","Env Category","Env Aspect","Env Indicator","Units","Normalizing Factor Used","Normalizing Factor Basis","Baseline CY","Baseline Performance","Anticipated Performance Year 1","Anticipated Performance Year 2","Anticipated Performance Year 3","Actual Performance Year 1","Actual Performance Year 2","Actual Performance Year 3","Developed EMS","Commit to Develop","EMS Certified","Certifying Body","Aspect Analysis","Impact Analysis","Completed One full cycle","Update Aspect Analysis","Date of last Aspect analysis","Analysis include internal EMS Audit","Date of next internal Audit","Analysis include internal Compliance Audit","Date of Next Compliance Audit","Policy Completed","Date Policy Completed","ID Aspects Completed","Date ID Aspects completed","ID Legal & Other Req. Completed","Date ID Legal & Other Req Completed","Establishing EMPs Completed","Date EMPs Completed","Objectives and Targets Set","Date Objectives and Targets Set","Structure and Resp Completed","Date Structure and Resp Completed","Training Program Completed","Date Training Program Completed","Communication Plan Completed","Date Communication Plan Completed","Documentation Plan Completed","Date Documentation Plan Completed","Document Control Procedures Completed","Date Doc Control Procedures Completed","Op Controls Completed","Date Op Controls Completed","Emergency Plan Completed","Date Emergency Plan Completed","Non-conformance Procedures Completed","Date Non-conformance Plan completed","Monitoring and Measurement Procedures completed","Date Monitoring and Measurement Plans Completed","Records Management Plan Completed","Date Record Management Plan completed","EMS Audit Plan Completed","Date EMS Audit Plan Completed","Management Review Procedures Completed","Date Mgmt Review Procedures Completed","3rd Party Audit Completed","Date 3rd Party Audit Completed","3rd Party Assessment Method used","Frequency of 3rd Party Audit","Date of next 3rd Party Audit","Communication Plan for Community","Method for Communicating Performance to Community","Ongoing Citizen Suits","Name and Title","Phone Number","Fax Number","Email Address"]
["Agriculture, Forestry, Fishing and Hunting",null,"Upstream","Upstream","Recycled content","Recycled content","Tons",null,"ADEQ Air ","Bronze","AJO","EPA",null,null,null,null,null,null,null,null,null,null,null,null,null,{"$f":"Application!F4","v":0},{"$f":"Application!F5","v":0},{"$f":"Application!B6","v":0},{"$f":"Application!E6","v":0},{"$f":"Application!B7","v":0},{"$f":"Application!F7","v":0},{"$f":"Application!E8","v":0},{"$f":"Application!B9","v":0},{"$f":"Application!E9","v":0},{"$f":"Application!B10","v":0},{"$f":"Application!D10","v":0},{"$f":"Application!F10","v":0},{"$f":"Application!B12","v":0},{"$f":"Application!B13","v":0},{"$f":"Application!B14","v":0},{"$f":"Application!E12","v":0},{"$f":"Application!E13","v":0},{"$f":"Application!E14","v":0},{"$f":"Application!D15","v":0},{"$f":"Application!C16","v":0},{"$f":"Application!B17","v":0},{"$f":"Application!D17","v":0},{"$f":"Application!F17","v":0},{"$f":"Application!B18","v":0},{"$f":"Application!D18","v":0},{"$f":"Application!F18","v":0},{"$f":"IF(AZ9=TRUE,\"Yes\",\"\")","v":""},{"$f":"IF(BA9=TRUE,\"Yes\",\"\")","v":""},"","","","","","","","","","",{"$f":"Application!C22","v":0},{"$f":"Application!C24","v":0},{"$f":"Application!F24","v":0},{"$f":"Application!A30","v":0},{"$f":"Application!B30","v":0},{"$f":"Application!C30","v":0},{"$f":"Application!A31","v":0},{"$f":"Application!B31","v":0},{"$f":"Application!C31","v":0},{"$f":"Application!A32","v":0},{"$f":"Application!B32","v":0},{"$f":"Application!C32","v":0},{"$f":"Application!A33","v":0},{"$f":"Application!B33","v":0},{"$f":"Application!C33","v":0},{"$f":"Application!A34","v":0},{"$f":"Application!B34","v":0},{"$f":"Application!C34","v":0},{"$f":"Application!D30","v":0},{"$f":"Application!E30","v":0},{"$f":"Application!F30","v":0},{"$f":"Application!D31","v":0},{"$f":"Application!E31","v":0},{"$f":"Application!F31","v":0},{"$f":"Application!D32","v":0},{"$f":"Application!E32","v":0},{"$f":"Application!F32","v":0},{"$f":"Application!D33","v":0},{"$f":"Application!E33","v":0},{"$f":"Application!F33","v":0},{"$f":"Application!D34","v":0},{"$f":"Application!E34","v":0},{"$f":"Application!F34","v":0},{"$f":"Application!C35","v":0},{"$f":"Application!F35","v":0},{"$f":"Application!C36","v":0},{"$f":"Application!F36","v":0},{"$f":"Application!A44","v":0},{"$f":"Application!B44","v":0},{"$f":"Application!C44","v":0},{"$f":"Application!D44","v":false},{"$f":"Application!E44","v":0},{"$f":"Application!F44","v":0},{"$f":"Application!B45","v":0},{"$f":"Application!C45","v":0},{"$f":"Application!E45","v":0},{"$f":"Application!F45","v":0},{"$f":"Application!F46","v":0},{"$f":"Application!A50","v":0},{"$f":"Application!B50","v":0},{"$f":"Application!C50","v":0},{"$f":"Application!D50","v":false},{"$f":"Application!E50","v":0},{"$f":"Application!F50","v":0},{"$f":"Application!B51","v":0},{"$f":"Application!C51","v":0},{"$f":"Application!E51","v":0},{"$f":"Application!F51","v":0},{"$f":"Application!F52","v":0},{"$f":"Application!A56","v":0},{"$f":"Application!B56","v":0},{"$f":"Application!C56","v":0},{"$f":"Application!D56","v":false},{"$f":"Application!E56","v":0},{"$f":"Application!F56","v":0},{"$f":"Application!B57","v":0},{"$f":"Application!C57","v":0},{"$f":"Application!E57","v":0},{"$f":"Application!F57","v":0},{"$f":"Application!F58","v":0},{"$f":"Application!A63","v":0},{"$f":"Application!B63","v":0},{"$f":"Application!C63","v":0},{"$f":"Application!D63","v":false},{"$f":"Application!E63","v":0},{"$f":"Application!F63","v":0},{"$f":"Application!A65","v":0},{"$f":"Application!B65","v":0},{"$f":"Application!C65","v":0},{"$f":"Application!A67","v":0},{"$f":"Application!C67","v":0},{"$f":"Application!D65","v":0},{"$f":"Application!B67","v":0},{"$f":"Application!D67","v":0},{"$f":"Application!A71","v":0},{"$f":"Application!B71","v":0},{"$f":"Application!C71","v":0},{"$f":"Application!D71","v":false},{"$f":"Application!E71","v":0},{"$f":"Application!F71","v":0},{"$f":"Application!A73","v":0},{"$f":"Application!B73","v":0},{"$f":"Application!C73","v":0},{"$f":"Application!A75","v":0},{"$f":"Application!C75","v":0},{"$f":"Application!D73","v":0},{"$f":"Application!B75","v":0},{"$f":"Application!D75","v":0},{"$f":"Application!C78","v":0},{"$f":"Application!C79","v":0},{"$f":"Application!C80","v":0},{"$f":"Application!C81","v":0},{"$f":"Application!C82","v":0},{"$f":"Application!F82","v":0},{"$f":"Application!C83","v":0},{"$f":"Application!C84","v":0},{"$f":"Application!F84","v":"00:00:00"},{"$f":"Application!C85","v":0},{"$f":"Application!F85","v":"00:00:00"},{"$f":"Application!C86","v":0},{"$f":"Application!F86","v":"00:00:00"},{"$f":"Application!B89","v":0},{"$f":"Application!C89","v":"00:00:00"},{"$f":"Application!B90","v":0},{"$f":"Application!C90","v":"00:00:00"},{"$f":"Application!B91","v":0},{"$f":"Application!C91","v":"00:00:00"},{"$f":"Application!B92","v":0},{"$f":"Application!C92","v":"00:00:00"},{"$f":"Application!B93","v":0},{"$f":"Application!C93","v":"00:00:00"},{"$f":"Application!B94","v":0},{"$f":"Application!C94","v":"00:00:00"},{"$f":"Application!B95","v":0},{"$f":"Application!C95","v":"00:00:00"},{"$f":"Application!B96","v":0},{"$f":"Application!C96","v":"00:00:00"},{"$f":"Application!B97","v":0},{"$f":"Application!C97","v":"00:00:00"},{"$f":"Application!E89","v":0},{"$f":"Application!F89","v":"00:00:00"},{"$f":"Application!E90","v":0},{"$f":"Application!F90","v":"00:00:00"},{"$f":"Application!E91","v":0},{"$f":"Application!F91","v":"00:00:00"},{"$f":"Application!E92","v":0},{"$f":"Application!F92","v":"00:00:00"},{"$f":"Application!E93","v":0},{"$f":"Application!F93","v":"00:00:00"},{"$f":"Application!E94","v":0},{"$f":"Application!F94","v":"00:00:00"},{"$f":"Application!E95","v":0},{"$f":"Application!F95","v":"00:00:00"},{"$f":"Application!E96","v":0},{"$f":"Application!F96","v":"00:00:00"},{"$f":"Application!F98","v":0},{"$f":"Application!B99","v":"00:00:00"},{"$f":"Application!F99","v":0},{"$f":"Application!C100","v":0},{"$f":"Application!F100","v":"00:00:00"},{"$f":"Application!F101","v":0},{"$f":"Application!C103","v":0},{"$f":"Application!F103","v":0},{"$f":"Application!B116","v":0},{"$f":"Application!B117","v":0},{"$f":"Application!D117","v":0},{"$f":"Application!F117","v":0},null,null,null,null,null,null,null,null,null,null,null,null,null,null,null,null,null,null,null,null,null,null,null,null,null,null,null,null,null,null,null,null,null,null,null,null,null,null,null,null,null,null,null,null,null,null,null,null,null,null,null,null,null,null,null,null,null,null,null,null,null,null,null,null,null,null,null,null,null,null,null,null,null,null,null,null,null,null,null,null,null,null,null,null,null,null,null,null,null,null,null,null,null,null,null,null,null,null,null,null,null,null,null,null,null,null,null,null,null,null,null,null,null,null,null,null,null,null,null,null,null,null,null,null,null,null,null,null,null,null,null,null,null,null,null,null,null,null,null,null,null,null,null,null,null,null,null,null,null,null,null,null,null,null,null,null,null,null,null,null,null,null,null,null,null,null,null,null,null,null,null,null,null,null,null,null,null,null,null,null,null,null,null,null,null,null,null,null,null,null,null,null,null,null,null,null,null,null,null,null,null,null,null,null,null,null,null,null,null,null,null,null,null,null,null,null,null,null,null,null,null,null,null,null,null,null,"CY - 2013"]
["Mining",null,"Input","Material Procurement"," Hazardous/toxic components"," Hazardous/toxic components","Tons",null,"ADEQ Water","Silver","ALPINE","County"]
["Utilities",null,"Nonproduct","Suppliers Environmental Performance","Hazardous materials used ",null,null,null,"ADEQ Waste","Gold","AMADO","Local"]
["Construction",null,"Downstream",null,"Total packaging materials used","Material use",null,null,"EPA","Platinum","ANTHEM"]
["Manufacturing",null,"Choose my own (type in)","Input","Total water used","Hazardous materials used ","Tons",null,"County","Copper","APACHE JUNCTION",null,null,null,null,null,null,null,null,null,null,null,null,null,null,null,null,null,null,null,null,null,null,null,null,null,null,null,null,null,null,null,null,null,null,null,null,null,null,null,null,"Learn about VESP Checkboxes",null,null,null,null,null,null,null,null,null,null,null,null,null,null,null,null,null,null,null,null,null,null,null,null,null,null,null,null,null,null,null,null,null,null,null,null,null,null,null,null,null,null,null,null,null,null,null,null,null,null,null,null,null,null,"PM Textbox"]
["Wholesale Trade",null,null,"Material Use","Land and habitat conservation","Ozone depleting substances\nused","CFC-11 equivalent\npounds",null,"City",null,"ARIVACA",null,null,null,null,null,null,null,null,null,null,null,null,null,null,null,null,null,null,null,null,null,null,null,null,null,null,null,null,null,null,null,null,null,null,null,null,null,null,null,null,"Press Release","Social Network Outlet","Conf. Mtg., Event","ADEQ Employee","Trade Assoc","Env Consultant","Media","ADEQ Web-page","Environmental Event","Existing Member","Sector Peer","Other","Specify"]
["Retail Trade",null,null,"Water Use","Community land revitalization","Total packaging materials used","Tons",null,null,"Unregulated","ARIZONA BOYS RANCH",null,null,null,null,null,null,null,null,null,null,null,null,null,null,null,null,null,null,null,null,null,null,null,null,null,null,null,null,null,null,null,null,null,null,null,null,null,null,null,null,false,false,false,null,false,null,null,false,null,false]
["Transportation and Warehousing",null,null,"Energy Use","VOCs","Water Use",null,null,null,"Copper","ARIZONA CITY"]
["Information",null,null,"Land and Habitat","NOx","Total water used","Gallons",null,null,null,"ARLINGTON"]
["Finance and Insurance",null,null,null,"SOx",null,null,null,"ADEQ Air","Heard About","ASH FORK"]
["Real Estate Rental and Leasing",null,null,"Nonproduct","PM2.5","Energy Use",null,null,"Individual","Press Release","AVONDALE"]
["Professional, Scientific, and Technical Services",null,null,"Air Emissions","PM10","Electricity","kWh",null,"General Air Curtain Incinerators","Media ","BAGDAD"]
["Management of Companies and Enterprises",null,null,"Discharges to Water","CO","Steam","kWh",null,"General Boiler","Social Network Outlet","BAPCHULE"]
["Administrative and Support and Waste Management and Remediation Services",null,null,"Nonhazardous Waste\n","Air toxics","Natural gas"," MMBtu",null,"General Concrete Batch Plant","ADEQ webpage","BEAVER DAM"]
["Educational Services",null,null,"Hazardous Waste","Odor","Diesel","Gallons",null,"General Crushing and Screening","At a professional conference, meeting, event","BELLEMONT"]
["Health Care and Social Assistance",null,null,"Noise","Radiation","Propane / LPG","Gallons",null,"General Dry Cleaners","At an environment-related event","BENSON"]
["Arts, Entertainment, and Recreation",null,null,"Vibration"," Dust","Gasoline","Gallons",null,"General Generator","ADEQ Employee","BISBEE"]
["Accommodation and Food Services",null,null,null,"COD","Solar","kWh",null,"General Hospital","From an existing member","BLACK CANYON CITY"]
["Other Services (except Public Administration)",null,null,"Downstream","BOD","Wind","kWh",null,"General Hot Mix Asphalt Plant","Through a trade association","BLUE"]
["Public Administration",null,null,"Products","Toxics","Landfill gas","MMBtu",null,"General Soil Vapor Extraction","From a peer in your sector","BOUSE"]
[null,null,null,"Reduce Reuse Recycle Repurpose","Total suspended solids","Combined heat and power","kWh / MWh",null,"General Wastewater Treatment Plants","Environmental Consultant","BOWIE"]
[null,null,null,null,"Nutrients (Nitrogen)",null,null,null,null,null,"BUCKEYE"]
[null,null,null,null,"Nutrients (Phosphorus)","Land and Habitat",null,null,null,null,"BULLHEAD CITY"]
[null,null,null,null,"Sediment from runoff","Land and habitat conservation","Acres",null,"ADEQ Water","Normalize","BYLAS"]
[null,null,null,null,"Pathogens","Community land revitalization","Acres",null,"Aquifer Protection Permit General","Production - number of product produced","CAMERON"]
["MIT - Unit Conversion Fact Sheet:",null,null,null,"Noise",null,null,null,"Aquifer Protection Permit Individual","Production - pounds of product produced","CAMP VERDE"]
["http://www.mitenergyclub.org/assets/2008/11/15/Units_ConvFactors.MIT_EnergyClub_Factsheet.v8.pdf",null,null,null,"Vibration","Air Emissions",null,null,"Reclaimed Water General","Production - tons of product produced","CANE BEDS"]
[null,null,null,null,"Expected lifetime energy use","Total GHGs","MTCO2E",null,"Reclaimed Water Individual","Gallons of product produced","CAREFREE"]
["http://contextures.com/xlDataVal02.html ",null,null,null,"Expected lifetime water use","VOCs","Pounds",null,"Arizona Pollutant Discharge Elimination System (AZPDES) General","Number of full time equivalents","CASA GRANDE"]
[null,null,null,null,"Expected lifetime waste to air, water, or land from product use","NOx","Pounds",null,"Arizona Pollutant Discharge Elimination System (AZPDES) Individual","Dollars of Sales (adjusted for inflation)","CASHION"]
[null,null,null,null,"Waste to air, water, or land from disposal or recovery","SOx","Pounds",null,"Stormwater","Tons of material procured","CATALINA"]
[null,null,null,null,null,"PM2.5","Pounds",null,"Multisector General Permit","Pounds of material procured","CAVE CREEK"]
[null,null,null,null,null,"PM10","Pounds",null,"Construction General Permit","Gallons of material procured","CENTRAL"]
[null,null,null,null,null,"CO","Pounds",null,null,"Number of work hours","CHAMBERS"]
[null,null,null,null,null,"Air toxics","Pounds",null,null,"Volume of mail processed","CHANDLER"]
[null,null,null,null,null,"Odor","European Odour Units",null,"ADEQ Waste","Pounds of clothes cleaned","CHANDLER HEIGHTS"]
[null,null,null,null,null,"Radiation","Curies",null,"Solid Waste Landfill Individual APP","Lodging room nights","CHINLE"]
[null,null,null,null,null," Dust","Pounds",null,"Container storage","Number of hospital beds","CHINO VALLEY"]
[null,null,null,null,null,null,null,null,"Tank Storage","Square feet of useable space","CHLORIDE"]
[null,null,null,null,null,"Discharges to Water",null,null,"Incinerator/Boiler and Industrial Furnace/ Landfill","Total energy production","CIBECUE"]
[null,null,null,null,null,"COD","Pounds",null,"Waste Pile/ Land Treatment/ Drip Pad/ Containment Building","Number of enrolled individuals","CIBOLA"]
[null,null,null,null,null,"BOD","Pounds",null,"Post-Closure Permit","Number of residents","CLARKDALE"]
[null,null,null,null,null,"Toxics","Pounds",null,null,"Number of customers served","CLAY SPRINGS"]
[null,null,null,null,null,"Total suspended solids","Pounds",null,"EPA",null,"CLAYPOOL"]
[null,null,null,null,null,"Nutrients (Nitrogen)","Pounds",null,"Air",null,"CLIFTON"]
[null,null,null,null,"Products","Nutrients (Phosphorus)","Pounds",null,"Water",null,"COCHISE"]
[null,null,null,null,null,"Sediment from runoff","Pounds",null,"Waste",null,"COLORADO CITY"]
[null,null,null,null,null,"Pathogens","CFU/ml",null,null,null,"CONCHO"]
[null,null,null,null,null,null,null,null,"County",null,"CONGRESS"]
[null,null,null,null,null,"Non-Hazardous Waste\n",null,null,"Air",null,"COOLIDGE"]
[null,null,null,null,null,"Landfill","Tons",null,"Water",null,"CORNVILLE"]
[null,null,null,null,null,"Incineration","Tons",null,"Waste",null,"CORTARO"]
[null,null,null,null,null,"Reused/recycled off-site","Tons",null,null,null,"COTTONWOOD"]
[null,null,null,null,null,"Reused/recycled on-site","Tons",null,"City",null,"CROWN KING"]
[null,null,null,null,null,null,null,null,"Air",null,"DATELAND"]
[null,null,null,null,null,"Hazardous Waste",null,null,"Water",null,"DAVIS MONTHAN AFB"]
[null,null,null,null,null,"Landfill","Tons",null,"Waste",null,"DENNEHOTSO"]
[null,null,null,null,null,"Incineration","Tons",null,null,null,"DESERT HILLS"]
[null,null,null,null,null,"Reused/recycled off-site","Tons",null,null,null,"DEWEY"]
[null,null,null,null,null,"Reused/recycled on-site","Tons",null,null,null,"DOLAN SPRINGS"]
[null,null,null,null,null,"TSDF","Tons",null,null,null,"DOUGLAS"]
[null,null,null,null,null,null,null,null,null,null,"DRAGOON"]
[null,null,null,null,null,"Noise",null,null,null,null,"DUNCAN"]
[null,null,null,null,null,"Noise","dBA",null,null,null,"EAGAR"]
[null,null,null,null,null,null,null,null,null,null,"EDEN"]
[null,null,null,null,null,"Vibration",null,null,null,null,"EHRENBERG"]
[null,null,null,null,null,"Vibration","Inches per second",null,null,null,"EL MIRAGE"]
[null,null,null,null,null,null,null,null,null,null,"ELEVEN MILE CORNER"]
[null,null,null,null,null,"Products",null,null,null,null,"ELFRIDA"]
[null,null,null,null,null,"Expected lifetime energy use","kWh / MWh",null,null,null,"ELGIN"]
[null,null,null,null,null,"Expected lifetime water use","Gallons",null,null,null,"ELOY"]
[null,null,null,null,null,"Expected lifetime waste to air, water, or land from product use","Tons",null,null,null,"FISHERS LANDING"]
[null,null,null,null,null,"Waste to air, water, or land from disposal or recovery","Tons",null,null,null,"FLAGSTAFF"]
[null,null,null,null,null,null,null,null,null,null,"FLORENCE"]
[null,null,null,null,null,"4 R's",null,null,null,null,"FOREST LAKES"]
[null,null,null,null,null,"Reduce","Tons",null,null,null,"FORT APACHE"]
[null,null,null,null,null,"Reuse","Tons",null,null,null,"FORT DEFIANCE"]
[null,null,null,null,null,"Recycle","Tons",null,null,null,"FORT HUACHUCA"]
[null,null,null,null,null,"Repurpose","Tons",null,null,null,"FORT MCDOWELL"]
[null,null,null,null,null,null,null,null,null,null,"FORT MOHAVE"]
[null,null,null,null,null,null,null,null,null,null,"FORT THOMAS"]
[null,null,null,null,null,null,null,null,null,null,"FOUNTAIN HILLS"]
[null,null,null,null,null,null,null,null,null,null,"FREDONIA"]
[null,null,null,null,null,null,null,null,null,null,"GADSDEN"]
[null,null,null,null,null,null,null,null,null,null,"GANADO"]
[null,null,null,null,null,null,null,null,null,null,"GILA BEND"]
[null,null,null,null,null,null,null,null,null,null,"GILBERT"]
[null,null,null,null,null,null,null,null,null,null,"GLENDALE"]
[null,null,null,null,null,null,null,null,null,null,"GLOBE"]
[null,null,null,null,null,null,null,null,null,null,"GOLD CANYON"]
[null,null,null,null,null,null,null,null,null,null,"GOLDEN VALLEY"]
[null,null,null,null,null,null,null,null,null,null,"GOODYEAR"]
[null,null,null,null,null,null,null,null,null,null,"GRAND CANYON VILLAGE"]
[null,null,null,null,null,null,null,null,null,null,"GRAY MOUNTAIN"]
[null,null,null,null,null,null,null,null,null,null,"GREEN VALLEY"]
[null,null,null,null,null,null,null,null,null,null,"GREER"]
[null,null,null,null,null,null,null,null,null,null,"GUADALUPE"]
[null,null,null,null,null,null,null,null,null,null,"HACKBERRY"]
[null,null,null,null,null,null,null,null,null,null,"HAPPY JACK"]
[null,null,null,null,null,null,null,null,null,null,"HAWLEY LAKE"]
[null,null,null,null,null,null,null,null,null,null,"HAYDEN"]
[null,null,null,null,null,null,null,null,null,null,"HEBER"]
[null,null,null,null,null,null,null,null,null,null,"HEREFORD"]
[null,null,null,null,null,null,null,null,null,null,"HIGLEY"]
[null,null,null,null,null,null,null,null,null,null,"HOLBROOK"]
[null,null,null,null,null,null,null,null,null,null,"HOTEVILLA"]
[null,null,null,null,null,null,null,null,null,null,"HOUCK"]
[null,null,null,null,null,null,null,null,null,null,"HUACHUCA CITY"]
[null,null,null,null,null,null,null,null,null,null,"HUALAPAI"]
[null,null,null,null,null,null,null,null,null,null,"HUMBOLDT"]
[null,null,null,null,null,null,null,null,null,null,"INDIAN WELLS"]
[null,null,null,null,null,null,null,null,null,null,"IRON SPRINGS"]
[null,null,null,null,null,null,null,null,null,null,"JACOB LAKE"]
[null,null,null,null,null,null,null,null,null,null,"JEROME"]
[null,null,null,null,null,null,null,null,null,null,"JOSEPH CITY"]
[null,null,null,null,null,null,null,null,null,null,"KAIBITO"]
[null,null,null,null,null,null,null,null,null,null,"KAYENTA"]
[null,null,null,null,null,null,null,null,null,null,"KEAMS CANYON"]
[null,null,null,null,null,null,null,null,null,null,"KEARNY"]
[null,null,null,null,null,null,null,null,null,null,"KINGMAN"]
[null,null,null,null,null,null,null,null,null,null,"KINO"]
[null,null,null,null,null,null,null,null,null,null,"KIRKLAND"]
[null,null,null,null,null,null,null,null,null,null,"KYKOTSMOVI"]
[null,null,null,null,null,null,null,null,null,null,"KYKOTSMOVI VILLAGE"]
[null,null,null,null,null,null,null,null,null,null,"LAKE HAVASU CITY"]
[null,null,null,null,null,null,null,null,null,null,"LAKE MONTEZUMA"]
[null,null,null,null,null,null,null,null,null,null,"LAKESIDE"]
[null,null,null,null,null,null,null,null,null,null,"LAVEEN"]
[null,null,null,null,null,null,null,null,null,null,"LEUPP"]
[null,null,null,null,null,null,null,null,null,null,"LITCHFIELD PARK"]
[null,null,null,null,null,null,null,null,null,null,"LITTLEFIELD"]
[null,null,null,null,null,null,null,null,null,null,"LUKACHUKAI"]
[null,null,null,null,null,null,null,null,null,null,"LUKE AFB"]
[null,null,null,null,null,null,null,null,null,null,"LUKEVILLE"]
[null,null,null,null,null,null,null,null,null,null,"LUPTON"]
[null,null,null,null,null,null,null,null,null,null,"MAMMOTH"]
[null,null,null,null,null,null,null,null,null,null,"MANY FARMS"]
[null,null,null,null,null,null,null,null,null,null,"MARANA"]
[null,null,null,null,null,null,null,null,null,null,"MARBLE CANYON"]
[null,null,null,null,null,null,null,null,null,null,"MARICOPA"]
[null,null,null,null,null,null,null,null,null,null,"MAYER"]
[null,null,null,null,null,null,null,null,null,null,"MC NEAL"]
[null,null,null,null,null,null,null,null,null,null,"MCNARY"]
[null,null,null,null,null,null,null,null,null,null,"MEADVIEW"]
[null,null,null,null,null,null,null,null,null,null,"MESA"]
[null,null,null,null,null,null,null,null,null,null,"MIAMI"]
[null,null,null,null,null,null,null,null,null,null,"MOBILE"]
[null,null,null,null,null,null,null,null,null,null,"MOCASSIN"]
[null,null,null,null,null,null,null,null,null,null,"MOHAVE VALLEY"]
[null,null,null,null,null,null,null,null,null,null,"MORENCI"]
[null,null,null,null,null,null,null,null,null,null,"MORMON LAKE"]
[null,null,null,null,null,null,null,null,null,null,"MORRISTOWN"]
[null,null,null,null,null,null,null,null,null,null,"MOUNT LEMMON"]
[null,null,null,null,null,null,null,null,null,null,"MUNDS PARK"]
[null,null,null,null,null,null,null,null,null,null,"NACO"]
[null,null,null,null,null,null,null,null,null,null,"NAVAJO"]
[null,null,null,null,null,null,null,null,null,null,"NAZLINI"]
[null,null,null,null,null,null,null,null,null,null,"NEW RIVER"]
[null,null,null,null,null,null,null,null,null,null,"NOGALES"]
[null,null,null,null,null,null,null,null,null,null,"NORTH RIM"]
[null,null,null,null,null,null,null,null,null,null,"NUTRIOSO"]
[null,null,null,null,null,null,null,null,null,null,"OATMAN"]
[null,null,null,null,null,null,null,null,null,null,"ORACLE"]
[null,null,null,null,null,null,null,null,null,null,"ORAIBI"]
[null,null,null,null,null,null,null,null,null,null,"ORO VALLEY"]
[null,null,null,null,null,null,null,null,null,null,"OVERGAARD"]
[null,null,null,null,null,null,null,null,null,null,"PAGE"]
[null,null,null,null,null,null,null,null,null,null,"PALO VERDE"]
[null,null,null,null,null,null,null,null,null,null,"PALOMINAS"]
[null,null,null,null,null,null,null,null,null,null,"PARADISE VALLEY"]
[null,null,null,null,null,null,null,null,null,null,"PARKER"]
[null,null,null,null,null,null,null,null,null,null,"PARKS"]
[null,null,null,null,null,null,null,null,null,null,"PATAGONIA"]
[null,null,null,null,null,null,null,null,null,null,"PAULDEN"]
[null,null,null,null,null,null,null,null,null,null,"PAYSON"]
[null,null,null,null,null,null,null,null,null,null,"PEACH SPRINGS"]
[null,null,null,null,null,null,null,null,null,null,"PEARCE"]
[null,null,null,null,null,null,null,null,null,null,"PEORIA"]
[null,null,null,null,null,null,null,null,null,null,"PERIDOT"]
[null,null,null,null,null,null,null,null,null,null,"PETRIFIED FOREST NATIONAL PARK"]
[null,null,null,null,null,null,null,null,null,null,"PETRIFIED NATIONAL FOREST"]
[null,null,null,null,null,null,null,null,null,null,"PHOENIX"]
[null,null,null,null,null,null,null,null,null,null,"PICACHO"]
[null,null,null,null,null,null,null,null,null,null,"PIMA"]
[null,null,null,null,null,null,null,null,null,null,"PINE"]
[null,null,null,null,null,null,null,null,null,null,"PINEDALE"]
[null,null,null,null,null,null,null,null,null,null,"PINETOP"]
[null,null,null,null,null,null,null,null,null,null,"PINON"]
[null,null,null,null,null,null,null,null,null,null,"PIRTLEVILLE"]
[null,null,null,null,null,null,null,null,null,null,"PISINEMO"]
[null,null,null,null,null,null,null,null,null,null,"POLACCA"]
[null,null,null,null,null,null,null,null,null,null,"POMERENE"]
[null,null,null,null,null,null,null,null,null,null,"PORTAL"]
[null,null,null,null,null,null,null,null,null,null,"POSTON"]
[null,null,null,null,null,null,null,null,null,null,"PRESCOTT"]
[null,null,null,null,null,null,null,null,null,null,"PRESCOTT VALLEY"]
[null,null,null,null,null,null,null,null,null,null,"PUNKIN CENTER"]
[null,null,null,null,null,null,null,null,null,null,"QUARTZSITE"]
[null,null,null,null,null,null,null,null,null,null,"QUEEN CREEK"]
[null,null,null,null,null,null,null,null,null,null,"QUEEN VALLEY"]
[null,null,null,null,null,null,null,null,null,null,"RED ROCK"]
[null,null,null,null,null,null,null,null,null,null,"RED VALLEY"]
[null,null,null,null,null,null,null,null,null,null,"RILLITO"]
[null,null,null,null,null,null,null,null,null,null,"RIMROCK"]
[null,null,null,null,null,null,null,null,null,null,"RIO RICO"]
[null,null,null,null,null,null,null,null,null,null,"RIO VERDE"]
[null,null,null,null,null,null,null,null,null,null,"ROCK POINT"]
[null,null,null,null,null,null,null,null,null,null,"ROCK SPRINGS"]
[null,null,null,null,null,null,null,null,null,null,"ROLL"]
[null,null,null,null,null,null,null,null,null,null,"ROOSEVELT"]
[null,null,null,null,null,null,null,null,null,null,"ROUND ROCK"]
[null,null,null,null,null,null,null,null,null,null,"SACATON"]
[null,null,null,null,null,null,null,null,null,null,"SAFFORD"]
[null,null,null,null,null,null,null,null,null,null,"SAHUARITA"]
[null,null,null,null,null,null,null,null,null,null,"SAINT DAVID"]
[null,null,null,null,null,null,null,null,null,null,"SAINT JOHNS"]
[null,null,null,null,null,null,null,null,null,null,"SAINT MICHAELS"]
[null,null,null,null,null,null,null,null,null,null,"SALOME"]
[null,null,null,null,null,null,null,null,null,null,"SAN CARLOS"]
[null,null,null,null,null,null,null,null,null,null,"SAN LUIS"]
[null,null,null,null,null,null,null,null,null,null,"SAN MANUEL"]
[null,null,null,null,null,null,null,null,null,null,"SAN SIMON"]
[null,null,null,null,null,null,null,null,null,null,"SANDERS"]
[null,null,null,null,null,null,null,null,null,null,"SASABE"]
[null,null,null,null,null,null,null,null,null,null,"SAWMILL"]
[null,null,null,null,null,null,null,null,null,null,"SCOTTSDALE"]
[null,null,null,null,null,null,null,null,null,null,"SECOND MESA"]
[null,null,null,null,null,null,null,null,null,null,"SEDONA"]
[null,null,null,null,null,null,null,null,null,null,"SELIGMAN"]
[null,null,null,null,null,null,null,null,null,null,"SELLS"]
[null,null,null,null,null,null,null,null,null,null,"SHONTO"]
[null,null,null,null,null,null,null,null,null,null,"SHOW LOW"]
[null,null,null,null,null,null,null,null,null,null,"SIERRA VISTA"]
[null,null,null,null,null,null,null,null,null,null,"SKULL VALLEY"]
[null,null,null,null,null,null,null,null,null,null,"SNOWFLAKE"]
[null,null,null,null,null,null,null,null,null,null,"SOLOMON"]
[null,null,null,null,null,null,null,null,null,null,"SOMERTON"]
[null,null,null,null,null,null,null,null,null,null,"SONOITA"]
[null,null,null,null,null,null,null,null,null,null,"SPRINGERVILLE"]
[null,null,null,null,null,null,null,null,null,null,"STANFIELD"]
[null,null,null,null,null,null,null,null,null,null,"STRAWBERRY"]
[null,null,null,null,null,null,null,null,null,null,"SUN CITY"]
[null,null,null,null,null,null,null,null,null,null,"SUN CITY WEST"]
[null,null,null,null,null,null,null,null,null,null,"SUN LAKES"]
[null,null,null,null,null,null,null,null,null,null,"SUN VALLEY"]
[null,null,null,null,null,null,null,null,null,null,"SUPAI"]
[null,null,null,null,null,null,null,null,null,null,"SUPERIOR"]
[null,null,null,null,null,null,null,null,null,null,"SURPRISE"]
[null,null,null,null,null,null,null,null,null,null,"TACNA"]
[null,null,null,null,null,null,null,null,null,null,"TAYLOR"]
[null,null,null,null,null,null,null,null,null,null,"TEEC NOS POS"]
[null,null,null,null,null,null,null,null,null,null,"TEMPE"]
[null,null,null,null,null,null,null,null,null,null,"TEMPLE BAR"]
[null,null,null,null,null,null,null,null,null,null,"THATCHER"]
[null,null,null,null,null,null,null,null,null,null,"TOLLESON"]
[null,null,null,null,null,null,null,null,null,null,"TOMBSTONE"]
[null,null,null,null,null,null,null,null,null,null,"TONALEA"]
[null,null,null,null,null,null,null,null,null,null,"TONOPAH"]
[null,null,null,null,null,null,null,null,null,null,"TONTO BASIN"]
[null,null,null,null,null,null,null,null,null,null,"TOPAWA"]
[null,null,null,null,null,null,null,null,null,null,"TOPOCK"]
[null,null,null,null,null,null,null,null,null,null,"TORTILLA FLAT"]
[null,null,null,null,null,null,null,null,null,null,"TSAILE"]
[null,null,null,null,null,null,null,null,null,null,"TUBA CITY"]
[null,null,null,null,null,null,null,null,null,null,"TUBAC"]
[null,null,null,null,null,null,null,null,null,null,"TUCSON"]
[null,null,null,null,null,null,null,null,null,null,"TUMACACORI"]
[null,null,null,null,null,null,null,null,null,null,"TUSAYAN"]
[null,null,null,null,null,null,null,null,null,null,"VAIL"]
[null,null,null,null,null,null,null,null,null,null,"VALENTINE"]
[null,null,null,null,null,null,null,null,null,null,"VALLEY FARMS"]
[null,null,null,null,null,null,null,null,null,null,"VERNON"]
[null,null,null,null,null,null,null,null,null,null,"WADDELL"]
[null,null,null,null,null,null,null,null,null,null,"WELLTON"]
[null,null,null,null,null,null,null,null,null,null,"WENDEN"]
[null,null,null,null,null,null,null,null,null,null,"WEST SEDONA"]
[null,null,null,null,null,null,null,null,null,null,"WHITE MOUNTAIN LAKE"]
[null,null,null,null,null,null,null,null,null,null,"WHITERIVER"]
[null,null,null,null,null,null,null,null,null,null,"WICKENBURG"]
[null,null,null,null,null,null,null,null,null,null,"WIKIEUP"]
[null,null,null,null,null,null,null,null,null,null,"WILLCOX"]
[null,null,null,null,null,null,null,null,null,null,"WILLIAMS"]
[null,null,null,null,null,null,null,null,null,null,"WILLOW BEACH"]
[null,null,null,null,null,null,null,null,null,null,"WINDOW ROCK"]
[null,null,null,null,null,null,null,null,null,null,"WINKELMAN"]
[null,null,null,null,null,null,null,null,null,null,"WINSLOW"]
[null,null,null,null,null,null,null,null,null,null,"WITTMANN"]
[null,null,null,null,null,null,null,null,null,null,"WOODRUFF"]
[null,null,null,null,null,null,null,null,null,null,"YARNELL"]
[null,null,null,null,null,null,null,null,null,null,"YOUNG"]
[null,null,null,null,null,null,null,null,null,null,"YOUNGTOWN"]
[null,null,null,null,null,null,null,null,null,null,"YUCCA"]
[null,null,null,null,null,null,null,null,null,null,"YUMA"]